NUMERO_MANDATO;IMPORTO_RIGA;IMPORTO_MANDATO;BENEFICIARIO;CIG;TITOLO_PAGAMENTO;DATA_MANDATO;CAPITOLO;ARTICOLO;NUMERO_IMPEGNO;TITOLO;DESCR_TITOLO;LIVELLO_II;DESCR_LIVELLO_II;LIVELLO_III;DESCR_LIVELLO_III;LIVELLO_IV;DESCR_LIVELLO_IV;LIVELLO_V;DESCR_LIVELLO_V;DATA_PAG_EFF
1;530;530;DELOGU CARLA MARIA AGENTE GROUPAMA;ZCA2F29283;Liquidazione polizza assicurazione autovettura targata DG587FL;12/01/2021;10418;36;437;1;Spese correnti;3;Acquisto di beni e servizi;2;Acquisto di servizi;99;Altri servizi;999;Altri servizi diversi n.a.c.;12/01/2021
2;900;900;SIDER NET SPA;Z262FBA71F;SALDO Fatt.n. 282/D  del 15/12/2020;12/01/2021;1207;25;449;1;Spese correnti;3;Acquisto di beni e servizi;1;Acquisto di beni;2;Altri beni di consumo;999;Altri beni e materiali di consumo n.a.c.;12/01/2021
3;216,21;216,21;HERA COMM S.r.l.;ZF92202C62;SALDO Fatt.n. 412020836576  del 11/12/2020 FORNITURA SERVIZIO ENERGIA ELETTRICA;12/01/2021;8214;1;76;1;Spese correnti;3;Acquisto di beni e servizi;2;Acquisto di servizi;5;Utenze e canoni;4;Energia elettrica;12/01/2021
4;2.500,00;2.500,00;TESTONI srl;Z952FBA89B;ACCONTO Fatt.n. 702934  del 23/12/2020 Consegna a: SCUOLA PRIMARIA E SECONDARIA PRIMO GRADO VIALE EUROPA 2 PIMENTEL 09020 SU;12/01/2021;4209;1;458;1;Spese correnti;3;Acquisto di beni e servizi;1;Acquisto di beni;2;Altri beni di consumo;2;Carburanti, combustibili e lubrificanti;12/01/2021
5;1.056,42;1.056,42;TESTONI srl;Z952FBA89B;SALDO Fatt.n. 702934  del 23/12/2020 Consegna a: SCUOLA PRIMARIA E SECONDARIA PRIMO GRADO VIALE EUROPA 2 PIMENTEL 09020 SU;12/01/2021;4310;2;457;1;Spese correnti;3;Acquisto di beni e servizi;1;Acquisto di beni;2;Altri beni di consumo;2;Carburanti, combustibili e lubrificanti;12/01/2021
6;102;102;BOSA  WALTER;Z342741F20;SALDO Fatt.n. 2591  del 19/12/2020 FATTURA VENDITA MEPA ( SPLIT PAYMENT );12/01/2021;9618;1;107;1;Spese correnti;3;Acquisto di beni e servizi;1;Acquisto di beni;2;Altri beni di consumo;999;Altri beni e materiali di consumo n.a.c.;12/01/2021
8;6.246,81;6.246,81;SVILUPPO SERVIZI ITALIA SOC.COOP. ONLUS;7,70E+09;SALDO Fatt.n. 106FPA  del 31/12/2020;13/01/2021;10418;23;1275;1;Spese correnti;3;Acquisto di beni e servizi;2;Acquisto di servizi;99;Altri servizi;999;Altri servizi diversi n.a.c.;13/01/2021
9;6.791,84;6.791,84;FIORI FRANCESCO;ZB329B1F27;SALDO Fatt.n. 1/FE  del 05/01/2021;13/01/2021;29521;6;283;2;Spese in conto capitale;2;Investimenti fissi lordi e acquisto di terreni;1;Beni materiali;9;Beni immobili;999;Beni immobili n.a.c.;13/01/2021
10;761,28;761,28;CADDEO MAURIZIO;ZE72E0E59F;SALDO Fatt.n. FATTPA 4_21  del 07/01/2021;13/01/2021;1611;2;352;1;Spese correnti;3;Acquisto di beni e servizi;2;Acquisto di servizi;11;Prestazioni professionali e specialistiche;999;Altre prestazioni professionali e specialistiche n.a.c.;13/01/2021
11;2.074,00;2.074,00;ELIOS Impianti di Fois Oscar;Z9E28B9793;SALDO Fatt.n. 76/2020/IMM  del 31/12/2020;13/01/2021;9619;7;225;1;Spese correnti;3;Acquisto di beni e servizi;2;Acquisto di servizi;99;Altri servizi;999;Altri servizi diversi n.a.c.;13/01/2021
12;294,63;294,63;DOG HOTEL DI IVANO CHINARELLO & C.  S.A.S.;ZC22BC20F4;SALDO Fatt.n. 2/1535  del 03/01/2021 Vostro dare per servizio di custodia, mantenimento e cura dei cani randagi presso le nostre strutture.;13/01/2021;3315;1;99;1;Spese correnti;3;Acquisto di beni e servizi;2;Acquisto di servizi;15;Contratti di servizio pubblico;11;Contratti di servizio per la lotta al randagismo;13/01/2021
13;6.050,71;6.050,71;SIRIGU MARIA CARMELA; ;SALDO Fatt.n. 2/1  del 04/01/2021;13/01/2021;1106;6;331;1;Spese correnti;3;Acquisto di beni e servizi;2;Acquisto di servizi;1;Organi e incarichi istituzionali dell'amministrazione;8;Compensi agli organi istituzionali di revisione, di controllo ed altri incarichi istituzionali dell'amministrazione;13/01/2021
14;536,73;536,73;OMESSO NOMINATIVO NEL RISPETTO DELLA NORMATIVA SULLA PROTEZIONE DATI PERSONALI; ;L.R.20/97 Contributi economici in favore di sofferenti mentali. Liquidazione saldo 2020;14/01/2021;10440;1;264;1;Spese correnti;4;Trasferimenti correnti;2;Trasferimenti correnti a Famiglie;5;Altri trasferimenti a famiglie;999;Altri trasferimenti a famiglie n.a.c.;14/01/2021
15;536,73;536,73;OMESSO NOMINATIVO NEL RISPETTO DELLA NORMATIVA SULLA PROTEZIONE DATI PERSONALI; ;L.R.20/97 Contributi economici in favore di sofferenti mentali. Liquidazione saldo 2020;14/01/2021;10440;1;265;1;Spese correnti;4;Trasferimenti correnti;2;Trasferimenti correnti a Famiglie;5;Altri trasferimenti a famiglie;999;Altri trasferimenti a famiglie n.a.c.;14/01/2021
16;1.468,86;1.468,86;OMESSO NOMINATIVO NEL RISPETTO DELLA NORMATIVA SULLA PROTEZIONE DATI PERSONALI; ;L.R.20/97 Contributi economici in favore di sofferenti mentali. Liquidazione saldo 2020;14/01/2021;10440;1;266;1;Spese correnti;4;Trasferimenti correnti;2;Trasferimenti correnti a Famiglie;5;Altri trasferimenti a famiglie;999;Altri trasferimenti a famiglie n.a.c.;14/01/2021
17;1.468,86;1.468,86;OMESSO NOMINATIVO NEL RISPETTO DELLA NORMATIVA SULLA PROTEZIONE DATI PERSONALI; ;L.R.20/97 Contributi economici in favore di sofferenti mentali. Liquidazione saldo 2020;14/01/2021;10440;1;267;1;Spese correnti;4;Trasferimenti correnti;2;Trasferimenti correnti a Famiglie;5;Altri trasferimenti a famiglie;999;Altri trasferimenti a famiglie n.a.c.;14/01/2021
18;1.468,86;1.468,86;OMESSO NOMINATIVO NEL RISPETTO DELLA NORMATIVA SULLA PROTEZIONE DATI PERSONALI; ;L.R.20/97 Contributi economici in favore di sofferenti mentali. Liquidazione saldo 2020;14/01/2021;10440;1;268;1;Spese correnti;4;Trasferimenti correnti;2;Trasferimenti correnti a Famiglie;5;Altri trasferimenti a famiglie;999;Altri trasferimenti a famiglie n.a.c.;14/01/2021
19;536,73;536,73;OMESSO NOMINATIVO NEL RISPETTO DELLA NORMATIVA SULLA PROTEZIONE DATI PERSONALI; ;L.R.20/97 Contributi economici in favore di sofferenti mentali. Liquidazione saldo 2020;14/01/2021;10440;1;269;1;Spese correnti;4;Trasferimenti correnti;2;Trasferimenti correnti a Famiglie;5;Altri trasferimenti a famiglie;999;Altri trasferimenti a famiglie n.a.c.;14/01/2021
20;536,73;536,73;OMESSO NOMINATIVO NEL RISPETTO DELLA NORMATIVA SULLA PROTEZIONE DATI PERSONALI; ;L.R.20/97 Contributi economici in favore di sofferenti mentali. Liquidazione saldo 2020;14/01/2021;10440;1;270;1;Spese correnti;4;Trasferimenti correnti;2;Trasferimenti correnti a Famiglie;5;Altri trasferimenti a famiglie;999;Altri trasferimenti a famiglie n.a.c.;14/01/2021
21;536,73;536,73;OMESSO NOMINATIVO NEL RISPETTO DELLA NORMATIVA SULLA PROTEZIONE DATI PERSONALI; ;L.R.20/97 Contributi economici in favore di sofferenti mentali. Liquidazione saldo 2020;14/01/2021;10440;1;271;1;Spese correnti;4;Trasferimenti correnti;2;Trasferimenti correnti a Famiglie;5;Altri trasferimenti a famiglie;999;Altri trasferimenti a famiglie n.a.c.;14/01/2021
22;536,73;536,73;OMESSO NOMINATIVO NEL RISPETTO DELLA NORMATIVA SULLA PROTEZIONE DATI PERSONALI; ;L.R.20/97 Contributi economici in favore di sofferenti mentali. Liquidazione saldo 2020;14/01/2021;10440;1;272;1;Spese correnti;4;Trasferimenti correnti;2;Trasferimenti correnti a Famiglie;5;Altri trasferimenti a famiglie;999;Altri trasferimenti a famiglie n.a.c.;14/01/2021
34;26,5;26,5;OMESSO NOMINATIVO NEL RISPETTO DELLA NORMATIVA SULLA PROTEZIONE DATI PERSONALI; ;SERVIZIO RISTORAZIONE SCOLASTICA IN FAVORE DEGLI ALUNNI DEL COMUNE DI PIMENTEL, SCUOLA DELL'INFANZIA;14/01/2021;10445;1;498;1;Spese correnti;4;Trasferimenti correnti;2;Trasferimenti correnti a Famiglie;5;Altri trasferimenti a famiglie;999;Altri trasferimenti a famiglie n.a.c.;14/01/2021
35;50,37;50,37;MINISTERO DELL'INTERNO-AFFARI INTERNI E TERRITORIALI; ;CAPO X CAPITOLO 3746 COMUNE DI PIMENTEL - incassi relativi ai diritti nuove CIE . Liquidazione Somme in favore del Ministero MESE DI NOVEMBRE 2020;14/01/2021;1229;2;114;1;Spese correnti;4;Trasferimenti correnti;1;Trasferimenti correnti a Amministrazioni Pubbliche;1;Trasferimenti correnti a Amministrazioni Centrali;1;Trasferimenti correnti a Ministeri;14/01/2021
36;414,07;414,07;ICART SRL;ZEF2F17171;SALDO Fatt.n. 751/DL1  del 14/12/2020 ORDINE 689975;14/01/2021;1206;10;434;1;Spese correnti;3;Acquisto di beni e servizi;1;Acquisto di beni;2;Altri beni di consumo;6;Materiale informatico;14/01/2021
37;0,47;0,47;TISCALI   ITALIA S.P.A.;Z1219FFF86;ACCONTO Fatt.n. 202480754  del 02/12/2020;14/01/2021;1207;15;476;1;Spese correnti;3;Acquisto di beni e servizi;2;Acquisto di servizi;5;Utenze e canoni;999;Utenze e canoni per altri servizi n.a.c.;14/01/2021
38;26,25;26,25;TISCALI   ITALIA S.P.A.;Z1219FFF86;SALDO Fatt.n. 202480754  del 02/12/2020;14/01/2021;1207;15;359;1;Spese correnti;3;Acquisto di beni e servizi;2;Acquisto di servizi;5;Utenze e canoni;999;Utenze e canoni per altri servizi n.a.c.;14/01/2021
39;20,74;20,74;TISCALI   ITALIA S.P.A.;Z2219FFFEA;SALDO Fatt.n. 202455950  del 02/12/2020;14/01/2021;1207;15;360;1;Spese correnti;3;Acquisto di beni e servizi;2;Acquisto di servizi;5;Utenze e canoni;999;Utenze e canoni per altri servizi n.a.c.;14/01/2021
40;929,77;929,77;PERSONALE DIPENDENTE; ;STIPENDI MESE DI: GENNAIO 21;15/01/2021;24310;31;801;2;Spese in conto capitale;2;Investimenti fissi lordi e acquisto di terreni;1;Beni materiali;9;Beni immobili;16;Impianti sportivi;15/01/2021
41;221,29;221,29;I.N.P.D.A.P. (SEZ. TES. PROV.LE); ;VERS.CONTRIB. MESE: GENNAIO 21 A CARICO DELL`ENTE;15/01/2021;24310;31;801;2;Spese in conto capitale;2;Investimenti fissi lordi e acquisto di terreni;1;Beni materiali;9;Beni immobili;16;Impianti sportivi;15/01/2021
42;79,03;79,03;REGIONE AUTONOMA DELLA SARDEGNA; ;VERS. IMPOSTE MESE: GENNAIO 21 PER I.R.A.P.;15/01/2021;24310;31;801;2;Spese in conto capitale;2;Investimenti fissi lordi e acquisto di terreni;1;Beni materiali;9;Beni immobili;16;Impianti sportivi;15/01/2021
43;770,27;770,27;PERSONALE DIPENDENTE; ;STIPENDI MESE DI: GENNAIO 21;15/01/2021;28112;8;243;2;Spese in conto capitale;2;Investimenti fissi lordi e acquisto di terreni;1;Beni materiali;9;Beni immobili;12;Infrastrutture stradali;15/01/2021
44;183,32;183,32;I.N.P.D.A.P. (SEZ. TES. PROV.LE); ;VERS.CONTRIB. MESE: GENNAIO 21 A CARICO DELL`ENTE;15/01/2021;28112;8;243;2;Spese in conto capitale;2;Investimenti fissi lordi e acquisto di terreni;1;Beni materiali;9;Beni immobili;12;Infrastrutture stradali;15/01/2021
45;65,46;65,46;REGIONE AUTONOMA DELLA SARDEGNA; ;VERS. IMPOSTE MESE: GENNAIO 21 PER I.R.A.P.;15/01/2021;28112;8;243;2;Spese in conto capitale;2;Investimenti fissi lordi e acquisto di terreni;1;Beni materiali;9;Beni immobili;12;Infrastrutture stradali;15/01/2021
46;391,15;391,15;PERSONALE DIPENDENTE; ;STIPENDI MESE DI: GENNAIO 21;15/01/2021;28112;9;480;2;Spese in conto capitale;2;Investimenti fissi lordi e acquisto di terreni;1;Beni materiali;9;Beni immobili;12;Infrastrutture stradali;15/01/2021
47;93,09;93,09;I.N.P.D.A.P. (SEZ. TES. PROV.LE); ;VERS.CONTRIB. MESE: GENNAIO 21 A CARICO DELL`ENTE;15/01/2021;28112;9;480;2;Spese in conto capitale;2;Investimenti fissi lordi e acquisto di terreni;1;Beni materiali;9;Beni immobili;12;Infrastrutture stradali;15/01/2021
48;33,25;33,25;REGIONE AUTONOMA DELLA SARDEGNA; ;VERS. IMPOSTE MESE: GENNAIO 21 PER I.R.A.P.;15/01/2021;28112;9;480;2;Spese in conto capitale;2;Investimenti fissi lordi e acquisto di terreni;1;Beni materiali;9;Beni immobili;12;Infrastrutture stradali;15/01/2021
51;2.914,95;2.914,95;MULTISERVIZI G.A.L.;77846364D9;SALDO Fatt.n. 335/PA  del 31/12/2020;18/01/2021;10216;1;170;1;Spese correnti;3;Acquisto di beni e servizi;2;Acquisto di servizi;15;Contratti di servizio pubblico;999;Altre spese per contratti di servizio pubblico;18/01/2021
52;899,96;899,96;ENEL ENERGIA S.P.A.; ;SALDO Fatt.n. 004101696663  del 10/01/2021;18/01/2021;1206;13;67;1;Spese correnti;3;Acquisto di beni e servizi;2;Acquisto di servizi;5;Utenze e canoni;4;Energia elettrica;18/01/2021
53;1.901,36;1.901,36;ENEL ENERGIA S.P.A.; ;SALDO Fatt.n. 004100569893  del 09/01/2021;18/01/2021;8214;1;72;1;Spese correnti;3;Acquisto di beni e servizi;2;Acquisto di servizi;5;Utenze e canoni;4;Energia elettrica;18/01/2021
54;638,93;638,93;ENEL ENERGIA S.P.A.; ;SALDO Fatt.n. 004104519522  del 13/01/2021;18/01/2021;8214;1;72;1;Spese correnti;3;Acquisto di beni e servizi;2;Acquisto di servizi;5;Utenze e canoni;4;Energia elettrica;18/01/2021
55;398,54;398,54;ENEL ENERGIA S.P.A.; ;SALDO Fatt.n. 004102479423  del 11/01/2021;18/01/2021;4109;9;68;1;Spese correnti;3;Acquisto di beni e servizi;2;Acquisto di servizi;5;Utenze e canoni;4;Energia elettrica;18/01/2021
56;1.727,78;1.727,78;ENEL ENERGIA S.P.A.; ;SALDO Fatt.n. 004102479424  del 11/01/2021;18/01/2021;8214;1;72;1;Spese correnti;3;Acquisto di beni e servizi;2;Acquisto di servizi;5;Utenze e canoni;4;Energia elettrica;18/01/2021
57;200;200;OMESSO NOMINATIVO NEL RISPETTO DELLA NORMATIVA SULLA PROTEZIONE DATI PERSONALI; ;CONVENZIONE TRA IL COMUNE DI ORTACESUS E IL COMUNE DI PIMENTEL PER       L UTILIZZO CONGIUNTO DI PERSONALE DIPENDENTE AI SENSI DELL ART 14 DEL CCNL REGIONI ED AUTONOMIE LOCALI DEL 22.01.2004. Rimborso spese viaggio secondo semestre 2020;18/01/2021;1309;20;260;1;Spese correnti;3;Acquisto di beni e servizi;2;Acquisto di servizi;2;Organizzazione eventi, pubblicita` e servizi per trasferta;2;Indennità di missione e di trasferta;18/01/2021
58;89,65;89,65;MANIS ELIANA; ;CONVENZIONE TRA IL COMUNE DI ORTACESUS E IL COMUNE DI PIMENTEL PER       L UTILIZZO CONGIUNTO DI PERSONALE DIPENDENTE AI SENSI DELL ART 14 DEL CCNL REGIONI ED AUTONOMIE LOCALI DEL 22.01.2004. Rimborso spese viaggio secondo semestre 2020;18/01/2021;1309;20;493;1;Spese correnti;3;Acquisto di beni e servizi;2;Acquisto di servizi;2;Organizzazione eventi, pubblicita` e servizi per trasferta;2;Indennità di missione e di trasferta;18/01/2021
59;110;110;ABBANOA S.P.A.; ;SALDO Fatt.n. 0150020210000007100  del 13/01/2021 B/Bollettazione;18/01/2021;1207;18;78;1;Spese correnti;3;Acquisto di beni e servizi;2;Acquisto di servizi;5;Utenze e canoni;5;Acqua;18/01/2021
60;117,53;117,53;MINISTERO DELL'INTERNO-AFFARI INTERNI E TERRITORIALI; ;CAPO X CAPITOLO 3746 COMUNE DI PIMENTEL Decreto Ministeriale 25.05.2016 - incassi relativi ai diritti nuove CIE . Liquidazione Somme in favore del Ministero MESE DI DICEMBRE 2020;18/01/2021;1229;2;114;1;Spese correnti;4;Trasferimenti correnti;1;Trasferimenti correnti a Amministrazioni Pubbliche;1;Trasferimenti correnti a Amministrazioni Centrali;1;Trasferimenti correnti a Ministeri;18/01/2021
87;719,8;719,8;HALLEY SARDEGNA S.R.L.;Z2F2FB5B1C;SALDO Fatt.n. 0001613  del 23/12/2020;19/01/2021;1207;17;446;1;Spese correnti;3;Acquisto di beni e servizi;2;Acquisto di servizi;19;Servizi informatici e di telecomunicazioni;5;Servizi per i sistemi e relativa manutenzione;19/01/2021
93;1.451,96;1.451,96;Personale Assimilati a Lavoro Dipendente; ;INDENNITA' DI FUNZIONE SINDACO E ASSESSORI - IMPEGNO DI SPESA anno 2021;20/01/2021;1106;1;26;1;Spese correnti;3;Acquisto di beni e servizi;2;Acquisto di servizi;1;Organi e incarichi istituzionali dell'amministrazione;1;Organi istituzionali dell'amministrazione - Indennità;20/01/2021
94;1.012,48;1.012,48;Personale Assimilati a Lavoro Dipendente; ;STIPENDI MESE DI: GENNAIO 21;20/01/2021;1106;2;7;1;Spese correnti;3;Acquisto di beni e servizi;2;Acquisto di servizi;1;Organi e incarichi istituzionali dell'amministrazione;1;Organi istituzionali dell'amministrazione - Indennità;20/01/2021
98;616,1;616,1;IMECO s.a.s di SPIGA IGNAZIO;ZC92F4F31D;SALDO Fatt.n. 1/PA  del 14/01/2021;21/01/2021;8214;2;422;1;Spese correnti;3;Acquisto di beni e servizi;2;Acquisto di servizi;9;Manutenzione ordinaria e riparazioni;8;Manutenzione ordinaria e riparazioni di beni immobili;21/01/2021
99;23,23;23,23;HERA COMM S.r.l.;ZF92202C62;ACCONTO Fatt.n. 412100137225  del 09/01/2021 FORNITURA SERVIZIO ENERGIA ELETTRICA;21/01/2021;8214;1;76;1;Spese correnti;3;Acquisto di beni e servizi;2;Acquisto di servizi;5;Utenze e canoni;4;Energia elettrica;21/01/2021
100;216,29;216,29;HERA COMM S.r.l.;ZF92202C62;SALDO Fatt.n. 412100137225  del 09/01/2021 FORNITURA SERVIZIO ENERGIA ELETTRICA;21/01/2021;8214;1;2;1;Spese correnti;3;Acquisto di beni e servizi;2;Acquisto di servizi;5;Utenze e canoni;4;Energia elettrica;21/01/2021
101;250,22;250,22;ERREBIAN      (S.P.A.);Z812F8399E;SALDO Fatt.n. V2/110332  del 30/12/2020 Contributo ambientale CONAI assolto;21/01/2021;1206;1;438;1;Spese correnti;3;Acquisto di beni e servizi;1;Acquisto di beni;2;Altri beni di consumo;999;Altri beni e materiali di consumo n.a.c.;21/01/2021
102;183,84;183,84;OMESSO NOMINATIVO NEL RISPETTO DELLA NORMATIVA SULLA PROTEZIONE DATI PERSONALI; ;Liquidazione provvidenze L.R.12/2011;21/01/2021;10440;1;118;1;Spese correnti;4;Trasferimenti correnti;2;Trasferimenti correnti a Famiglie;5;Altri trasferimenti a famiglie;999;Altri trasferimenti a famiglie n.a.c.;21/01/2021
103;96,44;96,44;OMESSO NOMINATIVO NEL RISPETTO DELLA NORMATIVA SULLA PROTEZIONE DATI PERSONALI; ;Liquidazione provvidenze L.R.9/2004;21/01/2021;10440;1;333;1;Spese correnti;4;Trasferimenti correnti;2;Trasferimenti correnti a Famiglie;5;Altri trasferimenti a famiglie;999;Altri trasferimenti a famiglie n.a.c.;21/01/2021
104;237,16;237,16;OMESSO NOMINATIVO NEL RISPETTO DELLA NORMATIVA SULLA PROTEZIONE DATI PERSONALI; ;Liquidazione provvidenze L.R. 9/2004;21/01/2021;10440;1;338;1;Spese correnti;4;Trasferimenti correnti;2;Trasferimenti correnti a Famiglie;5;Altri trasferimenti a famiglie;999;Altri trasferimenti a famiglie n.a.c.;21/01/2021
105;137,57;137,57;OMESSO NOMINATIVO NEL RISPETTO DELLA NORMATIVA SULLA PROTEZIONE DATI PERSONALI; ;Liquidazione provvidenze L.R. 9/2004;21/01/2021;10440;1;340;1;Spese correnti;4;Trasferimenti correnti;2;Trasferimenti correnti a Famiglie;5;Altri trasferimenti a famiglie;999;Altri trasferimenti a famiglie n.a.c.;21/01/2021
106;894,87;894,87;OMESSO NOMINATIVO NEL RISPETTO DELLA NORMATIVA SULLA PROTEZIONE DATI PERSONALI; ;Liquidazione provvidenze L.R.11/85;21/01/2021;10440;1;382;1;Spese correnti;4;Trasferimenti correnti;2;Trasferimenti correnti a Famiglie;5;Altri trasferimenti a famiglie;999;Altri trasferimenti a famiglie n.a.c.;21/01/2021
107;157,66;157,66;OMESSO NOMINATIVO NEL RISPETTO DELLA NORMATIVA SULLA PROTEZIONE DATI PERSONALI; ;Liquidazione provvidenze L.R. 9/2004;21/01/2021;10440;1;390;1;Spese correnti;4;Trasferimenti correnti;2;Trasferimenti correnti a Famiglie;5;Altri trasferimenti a famiglie;999;Altri trasferimenti a famiglie n.a.c.;21/01/2021
108;321,72;321,72;OMESSO NOMINATIVO NEL RISPETTO DELLA NORMATIVA SULLA PROTEZIONE DATI PERSONALI; ;Liquidazione providenze L.R.12/2011;21/01/2021;10440;1;430;1;Spese correnti;4;Trasferimenti correnti;2;Trasferimenti correnti a Famiglie;5;Altri trasferimenti a famiglie;999;Altri trasferimenti a famiglie n.a.c.;21/01/2021
109;133,47;133,47;OMESSO NOMINATIVO NEL RISPETTO DELLA NORMATIVA SULLA PROTEZIONE DATI PERSONALI; ;Liquidazione provvidenze L.R. 9/2004;21/01/2021;10440;1;490;1;Spese correnti;4;Trasferimenti correnti;2;Trasferimenti correnti a Famiglie;5;Altri trasferimenti a famiglie;999;Altri trasferimenti a famiglie n.a.c.;21/01/2021
110;16,94;16,94;OMESSO NOMINATIVO NEL RISPETTO DELLA NORMATIVA SULLA PROTEZIONE DATI PERSONALI; ;Liquidazione provvidenze L.R.9/2004;21/01/2021;10440;1;490;1;Spese correnti;4;Trasferimenti correnti;2;Trasferimenti correnti a Famiglie;5;Altri trasferimenti a famiglie;999;Altri trasferimenti a famiglie n.a.c.;21/01/2021
111;220,22;220,22;OMESSO NOMINATIVO NEL RISPETTO DELLA NORMATIVA SULLA PROTEZIONE DATI PERSONALI; ;Liquidazione provvidenze L.R.9/2004;21/01/2021;10440;1;490;1;Spese correnti;4;Trasferimenti correnti;2;Trasferimenti correnti a Famiglie;5;Altri trasferimenti a famiglie;999;Altri trasferimenti a famiglie n.a.c.;21/01/2021
112;33,88;33,88;OMESSO NOMINATIVO NEL RISPETTO DELLA NORMATIVA SULLA PROTEZIONE DATI PERSONALI; ;Liquidazione provvidenze L.R.9/2004;21/01/2021;10440;1;490;1;Spese correnti;4;Trasferimenti correnti;2;Trasferimenti correnti a Famiglie;5;Altri trasferimenti a famiglie;999;Altri trasferimenti a famiglie n.a.c.;21/01/2021
113;1.330,00;1.330,00;OMESSO NOMINATIVO NEL RISPETTO DELLA NORMATIVA SULLA PROTEZIONE DATI PERSONALI; ;Programma Ritornare a casa 2020. Liquidazione buste paga mese di dicembre in favore di un beneficiario.;21/01/2021;10418;15;443;1;Spese correnti;3;Acquisto di beni e servizi;2;Acquisto di servizi;99;Altri servizi;999;Altri servizi diversi n.a.c.;21/01/2021
114;755,15;755,15;LAGO E NURAGHE COOPERATIVA SOCIALE;Z712E91860;ACCONTO Fatt.n. 5/PA  del 14/01/2021;21/01/2021;4130;32;394;1;Spese correnti;3;Acquisto di beni e servizi;2;Acquisto di servizi;15;Contratti di servizio pubblico;6;Contratti di servizio per le mense scolastiche;21/01/2021
115;1.024,50;1.024,50;LAGO E NURAGHE COOPERATIVA SOCIALE;Z712E91860;ACCONTO Fatt.n. 5/PA  del 14/01/2021;21/01/2021;4210;4;393;1;Spese correnti;3;Acquisto di beni e servizi;2;Acquisto di servizi;15;Contratti di servizio pubblico;6;Contratti di servizio per le mense scolastiche;21/01/2021
116;2.204,84;2.204,84;LAGO E NURAGHE COOPERATIVA SOCIALE;Z712E91860;SALDO Fatt.n. 5/PA  del 14/01/2021;21/01/2021;4210;3;392;1;Spese correnti;3;Acquisto di beni e servizi;2;Acquisto di servizi;15;Contratti di servizio pubblico;6;Contratti di servizio per le mense scolastiche;21/01/2021
117;1.256,06;1.256,06;LAGO E NURAGHE COOPERATIVA SOCIALE;Z322C1FE75;SALDO Fatt.n. 4/PA  del 14/01/2021;21/01/2021;10216;10;149;1;Spese correnti;3;Acquisto di beni e servizi;2;Acquisto di servizi;15;Contratti di servizio pubblico;999;Altre spese per contratti di servizio pubblico;21/01/2021
118;165,71;165,71;OMESSO NOMINATIVO NEL RISPETTO DELLA NORMATIVA SULLA PROTEZIONE DATI PERSONALI; ;Liquidazione fatt. n. 83/PR dicembre 2020;22/01/2021;10446;3;285;1;Spese correnti;4;Trasferimenti correnti;2;Trasferimenti correnti a Famiglie;5;Altri trasferimenti a famiglie;999;Altri trasferimenti a famiglie n.a.c.;22/01/2021
119;302,76;302,76;OMESSO NOMINATIVO NEL RISPETTO DELLA NORMATIVA SULLA PROTEZIONE DATI PERSONALI; ;Liquidazione fatt. n. 82/PR dicembre 2020 per FOIS ELIO;22/01/2021;10446;3;294;1;Spese correnti;4;Trasferimenti correnti;2;Trasferimenti correnti a Famiglie;5;Altri trasferimenti a famiglie;999;Altri trasferimenti a famiglie n.a.c.;22/01/2021
120;79,28;79,28;OMESSO NOMINATIVO NEL RISPETTO DELLA NORMATIVA SULLA PROTEZIONE DATI PERSONALI; ;Liquidazione fatt. n. 82/PR dicembre 2020 per FOIS ELIO;22/01/2021;10446;3;294;1;Spese correnti;4;Trasferimenti correnti;2;Trasferimenti correnti a Famiglie;5;Altri trasferimenti a famiglie;999;Altri trasferimenti a famiglie n.a.c.;22/01/2021
121;220,94;220,94;OMESSO NOMINATIVO NEL RISPETTO DELLA NORMATIVA SULLA PROTEZIONE DATI PERSONALI; ;Liquidazione fatt. n. 88/PR dicembre 2020;22/01/2021;10446;3;295;1;Spese correnti;4;Trasferimenti correnti;2;Trasferimenti correnti a Famiglie;5;Altri trasferimenti a famiglie;999;Altri trasferimenti a famiglie n.a.c.;22/01/2021
122;173,38;173,38;OMESSO NOMINATIVO NEL RISPETTO DELLA NORMATIVA SULLA PROTEZIONE DATI PERSONALI; ;Liquidazione fatt. n. 80/PR dicembre 2020;22/01/2021;10446;3;297;1;Spese correnti;4;Trasferimenti correnti;2;Trasferimenti correnti a Famiglie;5;Altri trasferimenti a famiglie;999;Altri trasferimenti a famiglie n.a.c.;22/01/2021
123;191,79;191,79;OMESSO NOMINATIVO NEL RISPETTO DELLA NORMATIVA SULLA PROTEZIONE DATI PERSONALI; ;Liquidazione fatt. n. 86/PR dicembre 2020;22/01/2021;10446;3;304;1;Spese correnti;4;Trasferimenti correnti;2;Trasferimenti correnti a Famiglie;5;Altri trasferimenti a famiglie;999;Altri trasferimenti a famiglie n.a.c.;22/01/2021
124;374,37;374,37;OMESSO NOMINATIVO NEL RISPETTO DELLA NORMATIVA SULLA PROTEZIONE DATI PERSONALI; ;Liquidazione fatt. n. 81/PR dicembre 2020;22/01/2021;10446;3;306;1;Spese correnti;4;Trasferimenti correnti;2;Trasferimenti correnti a Famiglie;5;Altri trasferimenti a famiglie;999;Altri trasferimenti a famiglie n.a.c.;22/01/2021
125;181,05;181,05;OMESSO NOMINATIVO NEL RISPETTO DELLA NORMATIVA SULLA PROTEZIONE DATI PERSONALI; ;Liquidazione fatt. n. 90/PR dicembre 2020;22/01/2021;10446;3;307;1;Spese correnti;4;Trasferimenti correnti;2;Trasferimenti correnti a Famiglie;5;Altri trasferimenti a famiglie;999;Altri trasferimenti a famiglie n.a.c.;22/01/2021
126;162,63;162,63;OMESSO NOMINATIVO NEL RISPETTO DELLA NORMATIVA SULLA PROTEZIONE DATI PERSONALI; ;Liquidazione fatt. n. 87/PR dicembre 2020;22/01/2021;10446;3;315;1;Spese correnti;4;Trasferimenti correnti;2;Trasferimenti correnti a Famiglie;5;Altri trasferimenti a famiglie;999;Altri trasferimenti a famiglie n.a.c.;22/01/2021
127;242,42;242,42;OMESSO NOMINATIVO NEL RISPETTO DELLA NORMATIVA SULLA PROTEZIONE DATI PERSONALI; ;Liquidazione fatt. n. 85/PR dicembre 2020;22/01/2021;10446;3;320;1;Spese correnti;4;Trasferimenti correnti;2;Trasferimenti correnti a Famiglie;5;Altri trasferimenti a famiglie;999;Altri trasferimenti a famiglie n.a.c.;22/01/2021
128;110,47;110,47;OMESSO NOMINATIVO NEL RISPETTO DELLA NORMATIVA SULLA PROTEZIONE DATI PERSONALI; ;Liquidazione fatt. n. 89/PR dicembre 2020;22/01/2021;10446;3;323;1;Spese correnti;4;Trasferimenti correnti;2;Trasferimenti correnti a Famiglie;5;Altri trasferimenti a famiglie;999;Altri trasferimenti a famiglie n.a.c.;22/01/2021
129;302,26;302,26;OMESSO NOMINATIVO NEL RISPETTO DELLA NORMATIVA SULLA PROTEZIONE DATI PERSONALI; ;Liquidazione fatt. n. 84/PR dicembre 2020;22/01/2021;10446;3;327;1;Spese correnti;4;Trasferimenti correnti;2;Trasferimenti correnti a Famiglie;5;Altri trasferimenti a famiglie;999;Altri trasferimenti a famiglie n.a.c.;22/01/2021
130;375;375;OMESSO NOMINATIVO NEL RISPETTO DELLA NORMATIVA SULLA PROTEZIONE DATI PERSONALI; ;l. 162/98 - Piani Personalizzati di aiuto alla persona. Liquidazione fattura n236 del 31/07/2020;22/01/2021;10446;3;187;1;Spese correnti;4;Trasferimenti correnti;2;Trasferimenti correnti a Famiglie;5;Altri trasferimenti a famiglie;999;Altri trasferimenti a famiglie n.a.c.;22/01/2021
131;429,52;429,52;OMESSO NOMINATIVO NEL RISPETTO DELLA NORMATIVA SULLA PROTEZIONE DATI PERSONALI; ;l. 162/98 - Piani Personalizzati di aiuto alla persona. Liquidazione mese di dicembre 2020.;22/01/2021;10446;3;286;1;Spese correnti;4;Trasferimenti correnti;2;Trasferimenti correnti a Famiglie;5;Altri trasferimenti a famiglie;999;Altri trasferimenti a famiglie n.a.c.;22/01/2021
132;385,23;385,23;OMESSO NOMINATIVO NEL RISPETTO DELLA NORMATIVA SULLA PROTEZIONE DATI PERSONALI; ;l. 162/98 - Piani Personalizzati di aiuto alla persona. Liquidazione mese di dicembre 2020.;22/01/2021;10446;3;287;1;Spese correnti;4;Trasferimenti correnti;2;Trasferimenti correnti a Famiglie;5;Altri trasferimenti a famiglie;999;Altri trasferimenti a famiglie n.a.c.;22/01/2021
133;513,4;513,4;OMESSO NOMINATIVO NEL RISPETTO DELLA NORMATIVA SULLA PROTEZIONE DATI PERSONALI; ;l. 162/98 - Piani Personalizzati di aiuto alla persona. Liquidazione mese di dicembre 2020.;22/01/2021;10446;3;288;1;Spese correnti;4;Trasferimenti correnti;2;Trasferimenti correnti a Famiglie;5;Altri trasferimenti a famiglie;999;Altri trasferimenti a famiglie n.a.c.;22/01/2021
134;318,75;318,75;OMESSO NOMINATIVO NEL RISPETTO DELLA NORMATIVA SULLA PROTEZIONE DATI PERSONALI; ;l. 162/98 - Piani Personalizzati di aiuto alla persona. Liquidazionefattura n. 76 del 24.12.20;22/01/2021;10446;3;289;1;Spese correnti;4;Trasferimenti correnti;2;Trasferimenti correnti a Famiglie;5;Altri trasferimenti a famiglie;999;Altri trasferimenti a famiglie n.a.c.;22/01/2021
135;443,14;443,14;OMESSO NOMINATIVO NEL RISPETTO DELLA NORMATIVA SULLA PROTEZIONE DATI PERSONALI; ;l. 162/98 - Piani Personalizzati di aiuto alla persona. Liquidazione mese di dicembre 2020.;22/01/2021;10446;3;290;1;Spese correnti;4;Trasferimenti correnti;2;Trasferimenti correnti a Famiglie;5;Altri trasferimenti a famiglie;999;Altri trasferimenti a famiglie n.a.c.;22/01/2021
136;1.408,25;1.408,25;OMESSO NOMINATIVO NEL RISPETTO DELLA NORMATIVA SULLA PROTEZIONE DATI PERSONALI; ;l. 162/98 - Piani Personalizzati di aiuto alla persona. Liquidazione mese di dicembre 2020.;22/01/2021;10446;3;292;1;Spese correnti;4;Trasferimenti correnti;2;Trasferimenti correnti a Famiglie;5;Altri trasferimenti a famiglie;999;Altri trasferimenti a famiglie n.a.c.;22/01/2021
137;378,45;378,45;OMESSO NOMINATIVO NEL RISPETTO DELLA NORMATIVA SULLA PROTEZIONE DATI PERSONALI; ;l. 162/98 - Piani Personalizzati di aiuto alla persona. Liquidazione mesi di novembre e dicembre 2020.;22/01/2021;10446;3;298;1;Spese correnti;4;Trasferimenti correnti;2;Trasferimenti correnti a Famiglie;5;Altri trasferimenti a famiglie;999;Altri trasferimenti a famiglie n.a.c.;22/01/2021
138;534,58;534,58;OMESSO NOMINATIVO NEL RISPETTO DELLA NORMATIVA SULLA PROTEZIONE DATI PERSONALI; ;l. 162/98 - Piani Personalizzati di aiuto alla persona. Liquidazione mese di dicembre 2020.;22/01/2021;10446;3;300;1;Spese correnti;4;Trasferimenti correnti;2;Trasferimenti correnti a Famiglie;5;Altri trasferimenti a famiglie;999;Altri trasferimenti a famiglie n.a.c.;22/01/2021
139;383,16;383,16;OMESSO NOMINATIVO NEL RISPETTO DELLA NORMATIVA SULLA PROTEZIONE DATI PERSONALI; ;l. 162/98 - Piani Personalizzati di aiuto alla persona. Liquidazione mese di dicembre 2020.;22/01/2021;10446;3;301;1;Spese correnti;4;Trasferimenti correnti;2;Trasferimenti correnti a Famiglie;5;Altri trasferimenti a famiglie;999;Altri trasferimenti a famiglie n.a.c.;22/01/2021
140;244,66;244,66;OMESSO NOMINATIVO NEL RISPETTO DELLA NORMATIVA SULLA PROTEZIONE DATI PERSONALI; ;l. 162/98 - Piani Personalizzati di aiuto alla persona. Liquidazione mese di dicembre 2020.;22/01/2021;10446;3;303;1;Spese correnti;4;Trasferimenti correnti;2;Trasferimenti correnti a Famiglie;5;Altri trasferimenti a famiglie;999;Altri trasferimenti a famiglie n.a.c.;22/01/2021
141;393,31;393,31;OMESSO NOMINATIVO NEL RISPETTO DELLA NORMATIVA SULLA PROTEZIONE DATI PERSONALI; ;l. 162/98 - Piani Personalizzati di aiuto alla persona. Liquidazione mese di dicembre 2020.;22/01/2021;10446;3;308;1;Spese correnti;4;Trasferimenti correnti;2;Trasferimenti correnti a Famiglie;5;Altri trasferimenti a famiglie;999;Altri trasferimenti a famiglie n.a.c.;22/01/2021
142;620;620;OMESSO NOMINATIVO NEL RISPETTO DELLA NORMATIVA SULLA PROTEZIONE DATI PERSONALI; ;l. 162/98 - Piani Personalizzati di aiuto alla persona. Liquidazione mese di dicembre 2020.;22/01/2021;10446;3;309;1;Spese correnti;4;Trasferimenti correnti;2;Trasferimenti correnti a Famiglie;5;Altri trasferimenti a famiglie;999;Altri trasferimenti a famiglie n.a.c.;22/01/2021
143;2.250,00;2.250,00;OMESSO NOMINATIVO NEL RISPETTO DELLA NORMATIVA SULLA PROTEZIONE DATI PERSONALI; ;l. 162/98 - Piani Personalizzati di aiuto alla persona. Liquidazione fatture n. . 378 e 418 anno 2020.;22/01/2021;10446;3;310;1;Spese correnti;4;Trasferimenti correnti;2;Trasferimenti correnti a Famiglie;5;Altri trasferimenti a famiglie;999;Altri trasferimenti a famiglie n.a.c.;22/01/2021
144;891;891;OMESSO NOMINATIVO NEL RISPETTO DELLA NORMATIVA SULLA PROTEZIONE DATI PERSONALI; ;l. 162/98 - Piani Personalizzati di aiuto alla persona. Liquidazione mesei di novembre e dicembre 2020.;22/01/2021;10446;3;311;1;Spese correnti;4;Trasferimenti correnti;2;Trasferimenti correnti a Famiglie;5;Altri trasferimenti a famiglie;999;Altri trasferimenti a famiglie n.a.c.;22/01/2021
145;200;200;OMESSO NOMINATIVO NEL RISPETTO DELLA NORMATIVA SULLA PROTEZIONE DATI PERSONALI; ;l. 162/98 - Piani Personalizzati di aiuto alla persona. Liquidazione mese di dicembre 2020.;22/01/2021;10446;3;312;1;Spese correnti;4;Trasferimenti correnti;2;Trasferimenti correnti a Famiglie;5;Altri trasferimenti a famiglie;999;Altri trasferimenti a famiglie n.a.c.;22/01/2021
146;401,47;401,47;OMESSO NOMINATIVO NEL RISPETTO DELLA NORMATIVA SULLA PROTEZIONE DATI PERSONALI; ;l. 162/98 - Piani Personalizzati di aiuto alla persona. Liquidazione mese di dicembre 2020.;22/01/2021;10446;3;313;1;Spese correnti;4;Trasferimenti correnti;2;Trasferimenti correnti a Famiglie;5;Altri trasferimenti a famiglie;999;Altri trasferimenti a famiglie n.a.c.;22/01/2021
147;170,61;170,61;OMESSO NOMINATIVO NEL RISPETTO DELLA NORMATIVA SULLA PROTEZIONE DATI PERSONALI; ;l. 162/98 - Piani Personalizzati di aiuto alla persona. Liquidazione mese di dicembre 2020.;22/01/2021;10446;3;314;1;Spese correnti;4;Trasferimenti correnti;2;Trasferimenti correnti a Famiglie;5;Altri trasferimenti a famiglie;999;Altri trasferimenti a famiglie n.a.c.;22/01/2021
148;120,64;120,64;OMESSO NOMINATIVO NEL RISPETTO DELLA NORMATIVA SULLA PROTEZIONE DATI PERSONALI; ;l. 162/98 - Piani Personalizzati di aiuto alla persona. Liquidazione mese di dicembre 2020.;22/01/2021;10446;3;316;1;Spese correnti;4;Trasferimenti correnti;2;Trasferimenti correnti a Famiglie;5;Altri trasferimenti a famiglie;999;Altri trasferimenti a famiglie n.a.c.;22/01/2021
149;225,01;225,01;OMESSO NOMINATIVO NEL RISPETTO DELLA NORMATIVA SULLA PROTEZIONE DATI PERSONALI; ;l. 162/98 - Piani Personalizzati di aiuto alla persona. Liquidazione mese di dicembre 2020.;22/01/2021;10446;3;318;1;Spese correnti;4;Trasferimenti correnti;2;Trasferimenti correnti a Famiglie;5;Altri trasferimenti a famiglie;999;Altri trasferimenti a famiglie n.a.c.;22/01/2021
150;215,13;215,13;OMESSO NOMINATIVO NEL RISPETTO DELLA NORMATIVA SULLA PROTEZIONE DATI PERSONALI; ;l. 162/98 - Piani Personalizzati di aiuto alla persona. Liquidazione mese di dicembre 2020.;22/01/2021;10446;3;321;1;Spese correnti;4;Trasferimenti correnti;2;Trasferimenti correnti a Famiglie;5;Altri trasferimenti a famiglie;999;Altri trasferimenti a famiglie n.a.c.;22/01/2021
151;108,93;108,93;OMESSO NOMINATIVO NEL RISPETTO DELLA NORMATIVA SULLA PROTEZIONE DATI PERSONALI; ;l. 162/98 - Piani Personalizzati di aiuto alla persona. Liquidazione mese di dicembre 2020.;22/01/2021;10446;3;324;1;Spese correnti;4;Trasferimenti correnti;2;Trasferimenti correnti a Famiglie;5;Altri trasferimenti a famiglie;999;Altri trasferimenti a famiglie n.a.c.;22/01/2021
152;393,48;393,48;OMESSO NOMINATIVO NEL RISPETTO DELLA NORMATIVA SULLA PROTEZIONE DATI PERSONALI; ;l. 162/98 - Piani Personalizzati di aiuto alla persona. Liquidazione mese di dicembre 2020.;22/01/2021;10446;3;325;1;Spese correnti;4;Trasferimenti correnti;2;Trasferimenti correnti a Famiglie;5;Altri trasferimenti a famiglie;999;Altri trasferimenti a famiglie n.a.c.;22/01/2021
153;4.930,31;4.930,31;ENI SPA;Z9F2F82A2C;SALDO Fatt.n. 19899170  del 20/01/2021;27/01/2021;8136;9;456;1;Spese correnti;3;Acquisto di beni e servizi;1;Acquisto di beni;2;Altri beni di consumo;2;Carburanti, combustibili e lubrificanti;27/01/2021
154;38,45;38,45;BOSA  WALTER;Z342741F20;SALDO Fatt.n. 108  del 25/01/2021 FATTURA VENDITA MEPA ( SPLIT PAYMENT );27/01/2021;9618;1;455;1;Spese correnti;3;Acquisto di beni e servizi;1;Acquisto di beni;2;Altri beni di consumo;999;Altri beni e materiali di consumo n.a.c.;27/01/2021
155;350;350;OMESSO NOMINATIVO NEL RISPETTO DELLA NORMATIVA SULLA PROTEZIONE DATI PERSONALI; ;REIS 2020 - Liquidazione mese di gennaio 2021 in favore di ciascun beneficiario.;27/01/2021;10445;4;466;1;Spese correnti;4;Trasferimenti correnti;2;Trasferimenti correnti a Famiglie;5;Altri trasferimenti a famiglie;999;Altri trasferimenti a famiglie n.a.c.;27/01/2021
156;275;275;OMESSO NOMINATIVO NEL RISPETTO DELLA NORMATIVA SULLA PROTEZIONE DATI PERSONALI; ;REIS 2020 - Liquidazione mese di gennaio 2021 in favore di ciascun beneficiario.;27/01/2021;10445;4;466;1;Spese correnti;4;Trasferimenti correnti;2;Trasferimenti correnti a Famiglie;5;Altri trasferimenti a famiglie;999;Altri trasferimenti a famiglie n.a.c.;27/01/2021
157;405;405;OMESSO NOMINATIVO NEL RISPETTO DELLA NORMATIVA SULLA PROTEZIONE DATI PERSONALI; ;REIS 2020 - Liquidazione mese di gennaio 2021 in favore di ciascun beneficiario.;27/01/2021;10445;4;466;1;Spese correnti;4;Trasferimenti correnti;2;Trasferimenti correnti a Famiglie;5;Altri trasferimenti a famiglie;999;Altri trasferimenti a famiglie n.a.c.;27/01/2021
158;375;375;OMESSO NOMINATIVO NEL RISPETTO DELLA NORMATIVA SULLA PROTEZIONE DATI PERSONALI; ;REIS 2020 - Liquidazione mese di gennaio 2021 in favore di ciascun beneficiario.;27/01/2021;10445;4;466;1;Spese correnti;4;Trasferimenti correnti;2;Trasferimenti correnti a Famiglie;5;Altri trasferimenti a famiglie;999;Altri trasferimenti a famiglie n.a.c.;27/01/2021
159;405;405;OMESSO NOMINATIVO NEL RISPETTO DELLA NORMATIVA SULLA PROTEZIONE DATI PERSONALI; ;REIS 2020 - Liquidazione mese di gennaio 2021 in favore di ciascun beneficiario.;27/01/2021;10445;4;466;1;Spese correnti;4;Trasferimenti correnti;2;Trasferimenti correnti a Famiglie;5;Altri trasferimenti a famiglie;999;Altri trasferimenti a famiglie n.a.c.;27/01/2021
160;300;300;OMESSO NOMINATIVO NEL RISPETTO DELLA NORMATIVA SULLA PROTEZIONE DATI PERSONALI; ;REIS 2020 - Liquidazione mese di gennaio 2021 in favore di ciascun beneficiario.;27/01/2021;10445;4;466;1;Spese correnti;4;Trasferimenti correnti;2;Trasferimenti correnti a Famiglie;5;Altri trasferimenti a famiglie;999;Altri trasferimenti a famiglie n.a.c.;27/01/2021
161;405;405;OMESSO NOMINATIVO NEL RISPETTO DELLA NORMATIVA SULLA PROTEZIONE DATI PERSONALI; ;REIS 2020 - Liquidazione mese di gennaio 2021 in favore di ciascun beneficiario.;27/01/2021;10445;4;466;1;Spese correnti;4;Trasferimenti correnti;2;Trasferimenti correnti a Famiglie;5;Altri trasferimenti a famiglie;999;Altri trasferimenti a famiglie n.a.c.;27/01/2021
162;300;300;OMESSO NOMINATIVO NEL RISPETTO DELLA NORMATIVA SULLA PROTEZIONE DATI PERSONALI; ;REIS 2020 - Liquidazione mese di gennaio 2021 in favore di ciascun beneficiario.;27/01/2021;10445;4;466;1;Spese correnti;4;Trasferimenti correnti;2;Trasferimenti correnti a Famiglie;5;Altri trasferimenti a famiglie;999;Altri trasferimenti a famiglie n.a.c.;27/01/2021
163;225;225;OMESSO NOMINATIVO NEL RISPETTO DELLA NORMATIVA SULLA PROTEZIONE DATI PERSONALI; ;REIS 2020 - Liquidazione mese di gennaio 2021 in favore di ciascun beneficiario.;27/01/2021;10445;4;466;1;Spese correnti;4;Trasferimenti correnti;2;Trasferimenti correnti a Famiglie;5;Altri trasferimenti a famiglie;999;Altri trasferimenti a famiglie n.a.c.;27/01/2021
164;350;350;OMESSO NOMINATIVO NEL RISPETTO DELLA NORMATIVA SULLA PROTEZIONE DATI PERSONALI; ;REIS 2020 - Liquidazione mese di gennaio 2021 in favore di ciascun beneficiario.;27/01/2021;10445;4;246;1;Spese correnti;4;Trasferimenti correnti;2;Trasferimenti correnti a Famiglie;5;Altri trasferimenti a famiglie;999;Altri trasferimenti a famiglie n.a.c.;27/01/2021
165;1.195,60;1.195,60;COMPUTER SCIENCE SAS;ZF72F9B678;SALDO Fatt.n. 1/PA  del 13/01/2021 FATTURA DI VENDITA ELET/SPLIT;27/01/2021;21311;2;452;2;Spese in conto capitale;2;Investimenti fissi lordi e acquisto di terreni;1;Beni materiali;7;Hardware;999;Hardware n.a.c.;27/01/2021
166;3.330,60;3.330,60;CURRELI RICCARDO;Z6E2F4F414;SALDO Fatt.n. 1/PA  del 22/01/2021 FORNITURA PORTE A GRATA;27/01/2021;21412;21;423;2;Spese in conto capitale;2;Investimenti fissi lordi e acquisto di terreni;1;Beni materiali;9;Beni immobili;999;Beni immobili n.a.c.;27/01/2021
167;2.225,00;2.225,00;M.C. MARKET S.R.L.; ;SALDO Fatt.n. FATTPA 1_21  del 19/01/2021;27/01/2021;10418;20;451;1;Spese correnti;3;Acquisto di beni e servizi;1;Acquisto di beni;2;Altri beni di consumo;11;Generi alimentari;27/01/2021
168;4.294,40;4.294,40;NICOLA ZUDDAS  S.R.L.;Z192F9330F;SALDO Fatt.n. 2021    28/E  del 22/01/2021;27/01/2021;1206;22;445;1;Spese correnti;3;Acquisto di beni e servizi;1;Acquisto di beni;2;Altri beni di consumo;6;Materiale informatico;27/01/2021
169;723;723;CORONGIU ALESSANDRA; ;Regolamento di attuazione dellart.73 della L.R. n.2/2016 ( Riordino del sistema delle autonomie locali della Sardegna) in materia di onericonnessi allesercizio delle funzioni elettive - Liquidazione di spesa rimborso forfettario al Sindaco, Vice-S;27/01/2021;1106;14;28;1;Spese correnti;3;Acquisto di beni e servizi;2;Acquisto di servizi;1;Organi e incarichi istituzionali dell'amministrazione;1;Organi istituzionali dell'amministrazione - Indennità;27/01/2021
170;100;100;MARRAS WALTER; ;Regolamento di attuazione dellart.73 della L.R. n.2/2016 in materia di onericonnessi allesercizio delle funzioni elettive - Liquidazione di spesa rimborso forfettario ASSESSORE MESE DI GENNAIO 2021;27/01/2021;1106;14;29;1;Spese correnti;3;Acquisto di beni e servizi;2;Acquisto di servizi;1;Organi e incarichi istituzionali dell'amministrazione;1;Organi istituzionali dell'amministrazione - Indennità;27/01/2021
171;100;100;PIAS LORENZO; ;Regolamento di attuazione dellart.73 della L.R. n.2/2016 in materia di onericonnessi allesercizio delle funzioni elettive - Liquidazione di spesa rimborso forfettario aSSESSORE MESE DI GENNAIO 2021;27/01/2021;1106;14;29;1;Spese correnti;3;Acquisto di beni e servizi;2;Acquisto di servizi;1;Organi e incarichi istituzionali dell'amministrazione;1;Organi istituzionali dell'amministrazione - Indennità;27/01/2021
172;100;100;SCANO ROBERTINO; ;Regolamento di attuazione dellart.73 della L.R. n.2/2016   in materia di onericonnessi allesercizio delle funzioni elettive - Liquidazione di spesa rimborso forfettario ASSESSORE MESE DI GENNAIO 2021;27/01/2021;1106;14;29;1;Spese correnti;3;Acquisto di beni e servizi;2;Acquisto di servizi;1;Organi e incarichi istituzionali dell'amministrazione;1;Organi istituzionali dell'amministrazione - Indennità;27/01/2021
173;250;250;PILLOSU GIANLUCA; ;Regolamento di attuazione dellart.73 della L.R. n.2/2016  in materia di onericonnessi allesercizio delle funzioni elettive - Liquidazione di spesa rimborso forfettario VICE SINDACO MESE DI GENNAIO 2021;27/01/2021;1106;14;29;1;Spese correnti;3;Acquisto di beni e servizi;2;Acquisto di servizi;1;Organi e incarichi istituzionali dell'amministrazione;1;Organi istituzionali dell'amministrazione - Indennità;27/01/2021
174;49.993,90;49.993,90;IMECO s.a.s di SPIGA IGNAZIO;ZE22DD08F1;SALDO Fatt.n. 2/PA  del 26/01/2021;29/01/2021;28210;1;360;2;Spese in conto capitale;2;Investimenti fissi lordi e acquisto di terreni;1;Beni materiali;4;Impianti e macchinari;2;Impianti;29/01/2021
177;1.281,00;1.281,00;IMECO s.a.s di SPIGA IGNAZIO;Z392176171;SALDO Fatt.n. 5/PA  del 29/01/2021;05/02/2021;8214;2;159;1;Spese correnti;3;Acquisto di beni e servizi;2;Acquisto di servizi;9;Manutenzione ordinaria e riparazioni;4;Manutenzione ordinaria e riparazioni di impianti e macchinari;05/02/2021
178;1.903,20;1.903,20;EDIL DES CAR di Desogus Carlo;Z1D28A1E9F;SALDO Fatt.n. 1  del 04/01/2021;05/02/2021;10520;1;220;1;Spese correnti;3;Acquisto di beni e servizi;2;Acquisto di servizi;15;Contratti di servizio pubblico;999;Altre spese per contratti di servizio pubblico;05/02/2021
179;341,6;341,6;NUOVA PRIMA S.R.L.;Z0C2F508BA;SALDO Fatt.n. 619NP/2021  del 29/01/2021;05/02/2021;1206;19;424;1;Spese correnti;3;Acquisto di beni e servizi;2;Acquisto di servizi;9;Manutenzione ordinaria e riparazioni;8;Manutenzione ordinaria e riparazioni di beni immobili;05/02/2021
180;50,79;50,79;SERVIZIO ELETTRICO NAZIONALE  S.P.A.; ;SALDO Fatt.n. 957720510711836  del 01/02/2021;08/02/2021;6211;6;223;1;Spese correnti;3;Acquisto di beni e servizi;2;Acquisto di servizi;5;Utenze e canoni;4;Energia elettrica;08/02/2021
181;91,84;91,84;SERVIZIO ELETTRICO NAZIONALE  S.P.A.; ;SALDO Fatt.n. 957720210784049  del 01/02/2021;08/02/2021;6211;6;223;1;Spese correnti;3;Acquisto di beni e servizi;2;Acquisto di servizi;5;Utenze e canoni;4;Energia elettrica;08/02/2021
183;4.764,69;4.764,69;COMUNE DI ORTACESUS; ;Convenzione  per utilizzo congiunto di personale ai sensi dellarticolo 1 comma 124 della legge 145/2018  E ART 14 del CCNL 2004 2004.Trasferimento al Comune di Ortacesus competenze novembre dicembre 2020;09/02/2021;1236;15;336;1;Spese correnti;4;Trasferimenti correnti;1;Trasferimenti correnti a Amministrazioni Pubbliche;2;Trasferimenti correnti a Amministrazioni Locali;3;Trasferimenti correnti a Comuni;09/02/2021
184;87,84;87,84;FATICONI Spa;Z792B4F769;SALDO Fatt.n. 000140PA  del 08/02/2021;11/02/2021;1206;3;92;1;Spese correnti;3;Acquisto di beni e servizi;2;Acquisto di servizi;9;Manutenzione ordinaria e riparazioni;6;Manutenzione ordinaria e riparazioni di macchine per ufficio;11/02/2021
185;3.891,46;3.891,46;SVILUPPO SERVIZI ITALIA SOC.COOP. ONLUS;852061491A;SALDO Fatt.n. 4FPA  del 31/01/2021 , verde pubblico ed igiene urbana mese di gennaio 2021;11/02/2021;10418;23;453;1;Spese correnti;3;Acquisto di beni e servizi;2;Acquisto di servizi;99;Altri servizi;999;Altri servizi diversi n.a.c.;11/02/2021
186;3.233,00;3.233,00;FARAD IMPIANTI SRL;Z142F508EC;SALDO Fatt.n. 4/PA  del 04/02/2021;11/02/2021;5211;1;428;1;Spese correnti;3;Acquisto di beni e servizi;2;Acquisto di servizi;7;Utilizzo di beni di terzi;8;Noleggi di impianti e macchinari;11/02/2021
187;11,26;11,26;GESTORE DEI SERVIZI ENERGETICI  GSE  S.p.a.; ;ACCONTO Fatt.n. 2021006435  del 02/02/2021 CORRISPETTIVO A COPERTURA DEGLI ONERI DI GESTIONE CONVENZIONE: N01H259178707;12/02/2021;1206;18;19;1;Spese correnti;3;Acquisto di beni e servizi;2;Acquisto di servizi;99;Altri servizi;999;Altri servizi diversi n.a.c.;12/02/2021
188;2,48;2,48;GESTORE DEI SERVIZI ENERGETICI  GSE  S.p.a.; ;SALDO Fatt.n. 2021006435  del 02/02/2021 CORRISPETTIVO A COPERTURA DEGLI ONERI DI GESTIONE CONVENZIONE: N01H259178707;12/02/2021;1206;18;19;1;Spese correnti;3;Acquisto di beni e servizi;2;Acquisto di servizi;99;Altri servizi;999;Altri servizi diversi n.a.c.;12/02/2021
218;2.352,00;2.352,00;COMUNE DI ORTACESUS; ;TRASFERIMENTO AL COMUNE DI ORTACESUS QUOTA RETRIBUZIONE DI RISULTATO RESPONSABILE AREA CONTABILE ANNO 2019 -;19/02/2021;1236;15;315;1;Spese correnti;4;Trasferimenti correnti;1;Trasferimenti correnti a Amministrazioni Pubbliche;2;Trasferimenti correnti a Amministrazioni Locali;3;Trasferimenti correnti a Comuni;19/02/2021
219;559,78;559,78;COMUNE DI ORTACESUS; ;TRASFERIMENTO AL COMUNE DI ORTACESUS QUOTA RETRIBUZIONE DI RISULTATO RESPONSABILE AREA CONTABILE ANNO 2019 -QUOTA CPDEL;19/02/2021;1236;15;315;1;Spese correnti;4;Trasferimenti correnti;1;Trasferimenti correnti a Amministrazioni Pubbliche;2;Trasferimenti correnti a Amministrazioni Locali;3;Trasferimenti correnti a Comuni;19/02/2021
220;27,8;27,8;COMUNE DI ORTACESUS; ;TRASFERIMENTO AL COMUNE DI ORTACESUS QUOTA RETRIBUZIONE DI RISULTATO RESPONSABILE AREA CONTABILE ANNO 2019 -QUOTA IRAP;19/02/2021;1236;15;315;1;Spese correnti;4;Trasferimenti correnti;1;Trasferimenti correnti a Amministrazioni Pubbliche;2;Trasferimenti correnti a Amministrazioni Locali;3;Trasferimenti correnti a Comuni;19/02/2021
221;172,13;172,13;COMUNE DI ORTACESUS; ;TRASFERIMENTO AL COMUNE DI ORTACESUS QUOTA RETRIBUZIONE DI RISULTATO RESPONSABILE AREA CONTABILE ANNO 2019 -SALDO QUOTA IRAP;19/02/2021;1236;15;479;1;Spese correnti;4;Trasferimenti correnti;1;Trasferimenti correnti a Amministrazioni Pubbliche;2;Trasferimenti correnti a Amministrazioni Locali;3;Trasferimenti correnti a Comuni;19/02/2021
222;201,48;201,48;MINISTERO DELL'INTERNO-AFFARI INTERNI E TERRITORIALI; ;GENNAIO  2021 CAPO X CAPITOLO 3746- Decreto Ministeriale 25.05.2016 - incassi relativi ai diritti nuove CIE . Liquidazione Somme in favore del Ministero;19/02/2021;1229;2;91;1;Spese correnti;4;Trasferimenti correnti;1;Trasferimenti correnti a Amministrazioni Pubbliche;1;Trasferimenti correnti a Amministrazioni Centrali;1;Trasferimenti correnti a Ministeri;19/02/2021
223;2.975,05;2.975,05;MULTISERVIZI G.A.L.;77846364D9;SALDO Fatt.n. 14/PA  del 31/01/2021;19/02/2021;10216;1;170;1;Spese correnti;3;Acquisto di beni e servizi;2;Acquisto di servizi;15;Contratti di servizio pubblico;999;Altre spese per contratti di servizio pubblico;19/02/2021
224;1.451,96;1.451,96;Personale Assimilati a Lavoro Dipendente; ;STIPENDI MESE DI: FEBBRAIO 21;22/02/2021;1106;1;26;1;Spese correnti;3;Acquisto di beni e servizi;2;Acquisto di servizi;1;Organi e incarichi istituzionali dell'amministrazione;1;Organi istituzionali dell'amministrazione - Indennità;22/02/2021
227;2.525,00;2.525,00;COMUNIONE EREDITARIA DI FERRANTE RITA; ;SALDO Fatt.n. 1/PA  del 02/02/2021;23/02/2021;10418;20;451;1;Spese correnti;3;Acquisto di beni e servizi;1;Acquisto di beni;2;Altri beni di consumo;11;Generi alimentari;23/02/2021
228;75;75;MARKET 2A SRLS; ;SALDO Fatt.n. 1/001  del 26/01/2021;23/02/2021;10418;20;451;1;Spese correnti;3;Acquisto di beni e servizi;1;Acquisto di beni;2;Altri beni di consumo;11;Generi alimentari;23/02/2021
229;71,43;71,43;SERVIZIO ELETTRICO NAZIONALE  S.P.A.; ;SALDO Fatt.n. 957720510711837  del 11/02/2021;23/02/2021;5210;1;98;1;Spese correnti;3;Acquisto di beni e servizi;2;Acquisto di servizi;5;Utenze e canoni;4;Energia elettrica;23/02/2021
230;169,4;169,4;SERVIZIO ELETTRICO NAZIONALE  S.P.A.; ;SALDO Fatt.n. 957720210784041  del 11/02/2021;23/02/2021;5210;1;98;1;Spese correnti;3;Acquisto di beni e servizi;2;Acquisto di servizi;5;Utenze e canoni;4;Energia elettrica;23/02/2021
231;500;500;VACCA GIANCARMINE;ZB22BCF458;ACCONTO Fatt.n. FPA 1/21  del 10/02/2021;23/02/2021;8112;1;102;1;Spese correnti;3;Acquisto di beni e servizi;1;Acquisto di beni;2;Altri beni di consumo;999;Altri beni e materiali di consumo n.a.c.;23/02/2021
232;44,1;44,1;VACCA GIANCARMINE;ZB22BCF458;SALDO Fatt.n. FPA 1/21  del 10/02/2021;23/02/2021;4310;1;101;1;Spese correnti;3;Acquisto di beni e servizi;1;Acquisto di beni;2;Altri beni di consumo;999;Altri beni e materiali di consumo n.a.c.;23/02/2021
233;914,63;914,63;ENEL ENERGIA S.P.A.; ;SALDO Fatt.n. 004109380711  del 07/02/2021;23/02/2021;1206;13;67;1;Spese correnti;3;Acquisto di beni e servizi;2;Acquisto di servizi;5;Utenze e canoni;4;Energia elettrica;23/02/2021
234;1.333,56;1.333,56;ENEL ENERGIA S.P.A.; ;SALDO Fatt.n. 004108577684  del 06/02/2021;23/02/2021;8214;1;13;1;Spese correnti;3;Acquisto di beni e servizi;2;Acquisto di servizi;5;Utenze e canoni;4;Energia elettrica;23/02/2021
235;153,15;153,15;ENEL ENERGIA S.P.A.; ;SALDO Fatt.n. 004112807730  del 10/02/2021;23/02/2021;8214;1;72;1;Spese correnti;3;Acquisto di beni e servizi;2;Acquisto di servizi;5;Utenze e canoni;4;Energia elettrica;23/02/2021
236;162,75;162,75;ENEL ENERGIA S.P.A.; ;SALDO Fatt.n. 004110358304  del 08/02/2021;23/02/2021;11722;1;7;1;Spese correnti;3;Acquisto di beni e servizi;2;Acquisto di servizi;5;Utenze e canoni;4;Energia elettrica;23/02/2021
237;468,47;468,47;ENEL ENERGIA S.P.A.; ;SALDO Fatt.n. 004109380712  del 07/02/2021;23/02/2021;8214;1;13;1;Spese correnti;3;Acquisto di beni e servizi;2;Acquisto di servizi;5;Utenze e canoni;4;Energia elettrica;23/02/2021
238;53,7;53,7;ENEL ENERGIA S.P.A.; ;SALDO Fatt.n. 004110358303  del 08/02/2021;23/02/2021;10519;1;75;1;Spese correnti;3;Acquisto di beni e servizi;2;Acquisto di servizi;5;Utenze e canoni;4;Energia elettrica;23/02/2021
239;123,5;123,5;ENEL ENERGIA S.P.A.; ;ACCONTO Fatt.n. 004112807731  del 10/02/2021;23/02/2021;4109;9;68;1;Spese correnti;3;Acquisto di beni e servizi;2;Acquisto di servizi;5;Utenze e canoni;4;Energia elettrica;23/02/2021
240;416,68;416,68;ENEL ENERGIA S.P.A.; ;SALDO Fatt.n. 004112807731  del 10/02/2021;23/02/2021;4109;9;9;1;Spese correnti;3;Acquisto di beni e servizi;2;Acquisto di servizi;5;Utenze e canoni;4;Energia elettrica;23/02/2021
241;671,79;671,79;ENEL ENERGIA S.P.A.; ;SALDO Fatt.n. 004110358302  del 08/02/2021;23/02/2021;1206;13;67;1;Spese correnti;3;Acquisto di beni e servizi;2;Acquisto di servizi;5;Utenze e canoni;4;Energia elettrica;23/02/2021
242;142,81;142,81;ENEL ENERGIA S.P.A.; ;SALDO Fatt.n. 004112807732  del 10/02/2021;23/02/2021;4210;2;69;1;Spese correnti;3;Acquisto di beni e servizi;2;Acquisto di servizi;5;Utenze e canoni;4;Energia elettrica;23/02/2021
243;303,46;303,46;ENEL ENERGIA S.P.A.; ;SALDO Fatt.n. 004112807733  del 10/02/2021;23/02/2021;4210;2;69;1;Spese correnti;3;Acquisto di beni e servizi;2;Acquisto di servizi;5;Utenze e canoni;4;Energia elettrica;23/02/2021
244;248,28;248,28;ENEL ENERGIA S.P.A.; ;SALDO Fatt.n. 004112807729  del 10/02/2021;23/02/2021;4311;3;70;1;Spese correnti;3;Acquisto di beni e servizi;2;Acquisto di servizi;5;Utenze e canoni;4;Energia elettrica;23/02/2021
245;866,4;866,4;LAGO E NURAGHE COOPERATIVA SOCIALE;Z712E91860;ACCONTO Fatt.n. 47/PA  del 13/02/2021;23/02/2021;4130;32;469;1;Spese correnti;3;Acquisto di beni e servizi;2;Acquisto di servizi;15;Contratti di servizio pubblico;6;Contratti di servizio per le mense scolastiche;23/02/2021
246;1.251,50;1.251,50;LAGO E NURAGHE COOPERATIVA SOCIALE;Z712E91860;ACCONTO Fatt.n. 47/PA  del 13/02/2021;23/02/2021;4210;4;393;1;Spese correnti;3;Acquisto di beni e servizi;2;Acquisto di servizi;15;Contratti di servizio pubblico;6;Contratti di servizio per le mense scolastiche;23/02/2021
247;2.670,45;2.670,45;LAGO E NURAGHE COOPERATIVA SOCIALE;Z712E91860;SALDO Fatt.n. 47/PA  del 13/02/2021;23/02/2021;4210;3;392;1;Spese correnti;3;Acquisto di beni e servizi;2;Acquisto di servizi;15;Contratti di servizio pubblico;6;Contratti di servizio per le mense scolastiche;23/02/2021
248;867,83;867,83;LAGO E NURAGHE COOPERATIVA SOCIALE;Z322C1FE75;SALDO Fatt.n. 48/PA  del 13/02/2021;23/02/2021;10216;10;149;1;Spese correnti;3;Acquisto di beni e servizi;2;Acquisto di servizi;15;Contratti di servizio pubblico;999;Altre spese per contratti di servizio pubblico;23/02/2021
249;350;350;OMESSO NOMINATIVO NEL RISPETTO DELLA NORMATIVA SULLA PROTEZIONE DATI PERSONALI; ;REIS 2019 - LIQUIDAZIONE MENSILITA' DI FEBBRAIO 2021 AI SINGOLI UTENTI.;23/02/2021;10445;4;466;1;Spese correnti;4;Trasferimenti correnti;2;Trasferimenti correnti a Famiglie;5;Altri trasferimenti a famiglie;999;Altri trasferimenti a famiglie n.a.c.;23/02/2021
250;275;275;OMESSO NOMINATIVO NEL RISPETTO DELLA NORMATIVA SULLA PROTEZIONE DATI PERSONALI; ;REIS 2019 - LIQUIDAZIONE MENSILITA' DI FEBBRAIO 2021 AI SINGOLI UTENTI.;23/02/2021;10445;4;466;1;Spese correnti;4;Trasferimenti correnti;2;Trasferimenti correnti a Famiglie;5;Altri trasferimenti a famiglie;999;Altri trasferimenti a famiglie n.a.c.;23/02/2021
251;405;405;OMESSO NOMINATIVO NEL RISPETTO DELLA NORMATIVA SULLA PROTEZIONE DATI PERSONALI; ;REIS 2019 - LIQUIDAZIONE MENSILITA' DI FEBBRAIO 2021 AI SINGOLI UTENTI.;23/02/2021;10445;4;466;1;Spese correnti;4;Trasferimenti correnti;2;Trasferimenti correnti a Famiglie;5;Altri trasferimenti a famiglie;999;Altri trasferimenti a famiglie n.a.c.;23/02/2021
252;375;375;OMESSO NOMINATIVO NEL RISPETTO DELLA NORMATIVA SULLA PROTEZIONE DATI PERSONALI; ;REIS 2019 - LIQUIDAZIONE MENSILITA' DI FEBBRAIO 2021 AI SINGOLI UTENTI.;23/02/2021;10445;4;466;1;Spese correnti;4;Trasferimenti correnti;2;Trasferimenti correnti a Famiglie;5;Altri trasferimenti a famiglie;999;Altri trasferimenti a famiglie n.a.c.;23/02/2021
253;325;325;OMESSO NOMINATIVO NEL RISPETTO DELLA NORMATIVA SULLA PROTEZIONE DATI PERSONALI; ;REIS 2019 - LIQUIDAZIONE MENSILITA' DI FEBBRAIO 2021 AI SINGOLI UTENTI.;23/02/2021;10445;4;466;1;Spese correnti;4;Trasferimenti correnti;2;Trasferimenti correnti a Famiglie;5;Altri trasferimenti a famiglie;999;Altri trasferimenti a famiglie n.a.c.;23/02/2021
254;300;300;OMESSO NOMINATIVO NEL RISPETTO DELLA NORMATIVA SULLA PROTEZIONE DATI PERSONALI; ;REIS 2019 - LIQUIDAZIONE MENSILITA' DI FEBBRAIO 2021 AI SINGOLI UTENTI.;23/02/2021;10445;4;466;1;Spese correnti;4;Trasferimenti correnti;2;Trasferimenti correnti a Famiglie;5;Altri trasferimenti a famiglie;999;Altri trasferimenti a famiglie n.a.c.;23/02/2021
255;405;405;OMESSO NOMINATIVO NEL RISPETTO DELLA NORMATIVA SULLA PROTEZIONE DATI PERSONALI; ;REIS 2019 - LIQUIDAZIONE MENSILITA' DI FEBBRAIO 2021 AI SINGOLI UTENTI.;23/02/2021;10445;4;466;1;Spese correnti;4;Trasferimenti correnti;2;Trasferimenti correnti a Famiglie;5;Altri trasferimenti a famiglie;999;Altri trasferimenti a famiglie n.a.c.;23/02/2021
256;300;300;OMESSO NOMINATIVO NEL RISPETTO DELLA NORMATIVA SULLA PROTEZIONE DATI PERSONALI; ;REIS 2019 - LIQUIDAZIONE MENSILITA' DI FEBBRAIO 2021 AI SINGOLI UTENTI.;23/02/2021;10445;4;466;1;Spese correnti;4;Trasferimenti correnti;2;Trasferimenti correnti a Famiglie;5;Altri trasferimenti a famiglie;999;Altri trasferimenti a famiglie n.a.c.;23/02/2021
257;225;225;OMESSO NOMINATIVO NEL RISPETTO DELLA NORMATIVA SULLA PROTEZIONE DATI PERSONALI; ;REIS 2019 - LIQUIDAZIONE MENSILITA' DI FEBBRAIO 2021 AI SINGOLI UTENTI.;23/02/2021;10445;4;466;1;Spese correnti;4;Trasferimenti correnti;2;Trasferimenti correnti a Famiglie;5;Altri trasferimenti a famiglie;999;Altri trasferimenti a famiglie n.a.c.;23/02/2021
258;11.644,90;11.644,90;BANCO DI SARDEGNA;ZB22720579;SALDO Fatt.n. 1015-000132-PA  del 08/02/2021 Societa appartenente al GRUPPO IVA BPER BANCA - ABI 1015.7 - Albo Banche n.5169 - Aderente al Fondo Interbancario di Tutela dei Depositi e al Fondo Nazionale di Garanzia -;23/02/2021;1308;1;251;1;Spese correnti;3;Acquisto di beni e servizi;2;Acquisto di servizi;17;Servizi finanziari;2;Oneri per servizio di tesoreria;23/02/2021
259;1.139,41;1.139,41;OMESSO NOMINATIVO NEL RISPETTO DELLA NORMATIVA SULLA PROTEZIONE DATI PERSONALI; ;PROGRAMMA RITORNARE A CASA anno 2021. Liquidazione buste paga mese di gennaio 2021.;25/02/2021;10418;15;442;1;Spese correnti;3;Acquisto di beni e servizi;2;Acquisto di servizi;99;Altri servizi;999;Altri servizi diversi n.a.c.;25/02/2021
260;723;723;CORONGIU ALESSANDRA; ;Regolamento di attuazione dellart.73 della L.R. n.2/2016 RIMBORSO FORFETTARIO SINDACO MESE DI FEBBRAIO 2021;26/02/2021;1106;14;86;1;Spese correnti;3;Acquisto di beni e servizi;2;Acquisto di servizi;1;Organi e incarichi istituzionali dell'amministrazione;1;Organi istituzionali dell'amministrazione - Indennità;26/02/2021
261;250;250;PILLOSU GIANLUCA; ;Regolamento di attuazione dellart.73 della L.R. n.2/2016 RIMBORSO FORFETTARIO VICE SINDACO MESE DI FEBBRAIO 2021;26/02/2021;1106;14;87;1;Spese correnti;3;Acquisto di beni e servizi;2;Acquisto di servizi;1;Organi e incarichi istituzionali dell'amministrazione;1;Organi istituzionali dell'amministrazione - Indennità;26/02/2021
262;100;100;PIAS LORENZO; ;Regolamento di attuazione dellart.73 della L.R. n.2/2016  RIMBORSO FORFETTARIO ASSESSORE MESE DI FEBBRAIO 2021;26/02/2021;1106;14;88;1;Spese correnti;3;Acquisto di beni e servizi;2;Acquisto di servizi;1;Organi e incarichi istituzionali dell'amministrazione;1;Organi istituzionali dell'amministrazione - Indennità;26/02/2021
263;100;100;SCANO ROBERTINO; ;Regolamento di attuazione dellart.73 della L.R. n.2/2016  RIMBORSO FORFETTARIO ASSESSORE MESE DI FEBBRAIO 2021;26/02/2021;1106;14;89;1;Spese correnti;3;Acquisto di beni e servizi;2;Acquisto di servizi;1;Organi e incarichi istituzionali dell'amministrazione;1;Organi istituzionali dell'amministrazione - Indennità;26/02/2021
264;100;100;MARRAS WALTER; ;Regolamento di attuazione dellart.73 della L.R. n.2/2016  RIMBORSO FORFETTARIO ASSESSORE MESE DI FEBBRAIO 2021;26/02/2021;1106;14;90;1;Spese correnti;3;Acquisto di beni e servizi;2;Acquisto di servizi;1;Organi e incarichi istituzionali dell'amministrazione;1;Organi istituzionali dell'amministrazione - Indennità;26/02/2021
265;150;150;OMESSO NOMINATIVO NEL RISPETTO DELLA NORMATIVA SULLA PROTEZIONE DATI PERSONALI; ;L.R.23/2005. Liquidazione contributo economico;01/03/2021;10445;1;100;1;Spese correnti;4;Trasferimenti correnti;2;Trasferimenti correnti a Famiglie;5;Altri trasferimenti a famiglie;999;Altri trasferimenti a famiglie n.a.c.;01/03/2021
266;300;300;OMESSO NOMINATIVO NEL RISPETTO DELLA NORMATIVA SULLA PROTEZIONE DATI PERSONALI; ;L.R.23/2005. Liquidazione contributo economico;01/03/2021;10445;1;101;1;Spese correnti;4;Trasferimenti correnti;2;Trasferimenti correnti a Famiglie;5;Altri trasferimenti a famiglie;999;Altri trasferimenti a famiglie n.a.c.;01/03/2021
267;300;300;OMESSO NOMINATIVO NEL RISPETTO DELLA NORMATIVA SULLA PROTEZIONE DATI PERSONALI; ;L.R.23/2005. Liquidazione contributo economico;01/03/2021;10445;1;102;1;Spese correnti;4;Trasferimenti correnti;2;Trasferimenti correnti a Famiglie;5;Altri trasferimenti a famiglie;999;Altri trasferimenti a famiglie n.a.c.;01/03/2021
268;242,52;242,52;A2A ENERGIA; ;SALDO Fatt.n. 821000046393  del 24/02/2021 FORNITURA ENERGIA ELETTRICA periodo: 01.01.2021-31.01.2021 POD IT001E99410996 Contatore 000000000000310862 kWh 1015;01/03/2021;8214;1;81;1;Spese correnti;3;Acquisto di beni e servizi;2;Acquisto di servizi;5;Utenze e canoni;4;Energia elettrica;01/03/2021
272;1.695,67;1.695,67;ENEL ENERGIA S.P.A.; ;SALDO Fatt.n. 004109380713  del 07/02/2021;03/03/2021;8214;1;13;1;Spese correnti;3;Acquisto di beni e servizi;2;Acquisto di servizi;5;Utenze e canoni;4;Energia elettrica;03/03/2021
273;226,21;226,21;ENEL ENERGIA S.P.A.; ;SALDO Fatt.n. 004114408057  del 26/02/2021;03/03/2021;4311;3;11;1;Spese correnti;3;Acquisto di beni e servizi;2;Acquisto di servizi;5;Utenze e canoni;4;Energia elettrica;03/03/2021
274;100;100;MARKET 2A SRLS; ;SALDO Fatt.n. 4/001  del 25/02/2021;03/03/2021;10418;20;451;1;Spese correnti;3;Acquisto di beni e servizi;1;Acquisto di beni;2;Altri beni di consumo;11;Generi alimentari;03/03/2021
275;166,6;166,6;OMESSO NOMINATIVO NEL RISPETTO DELLA NORMATIVA SULLA PROTEZIONE DATI PERSONALI; ;Liquidazione fatt.n.116/A gennaio 2021;03/03/2021;10446;3;40;1;Spese correnti;4;Trasferimenti correnti;2;Trasferimenti correnti a Famiglie;5;Altri trasferimenti a famiglie;999;Altri trasferimenti a famiglie n.a.c.;03/03/2021
276;175;175;OMESSO NOMINATIVO NEL RISPETTO DELLA NORMATIVA SULLA PROTEZIONE DATI PERSONALI; ;Liquidazione fatt.n.119/A gennaio 2021;03/03/2021;10446;3;52;1;Spese correnti;4;Trasferimenti correnti;2;Trasferimenti correnti a Famiglie;5;Altri trasferimenti a famiglie;999;Altri trasferimenti a famiglie n.a.c.;03/03/2021
277;170;170;OMESSO NOMINATIVO NEL RISPETTO DELLA NORMATIVA SULLA PROTEZIONE DATI PERSONALI; ;Liquidazione fatt.n.120/A gennaio 2021;03/03/2021;10446;3;54;1;Spese correnti;4;Trasferimenti correnti;2;Trasferimenti correnti a Famiglie;5;Altri trasferimenti a famiglie;999;Altri trasferimenti a famiglie n.a.c.;03/03/2021
278;175;175;OMESSO NOMINATIVO NEL RISPETTO DELLA NORMATIVA SULLA PROTEZIONE DATI PERSONALI; ;Liquidazione fatt.n.121/A gennaio 2021;03/03/2021;10446;3;60;1;Spese correnti;4;Trasferimenti correnti;2;Trasferimenti correnti a Famiglie;5;Altri trasferimenti a famiglie;999;Altri trasferimenti a famiglie n.a.c.;03/03/2021
279;375;375;OMESSO NOMINATIVO NEL RISPETTO DELLA NORMATIVA SULLA PROTEZIONE DATI PERSONALI; ;Liquidazione fatt.n.123/A gennaio 2021;03/03/2021;10446;3;61;1;Spese correnti;4;Trasferimenti correnti;2;Trasferimenti correnti a Famiglie;5;Altri trasferimenti a famiglie;999;Altri trasferimenti a famiglie n.a.c.;03/03/2021
280;181,6;181,6;OMESSO NOMINATIVO NEL RISPETTO DELLA NORMATIVA SULLA PROTEZIONE DATI PERSONALI; ;Liquidazione fatt.n.122/A gennaio 2021;03/03/2021;10446;3;63;1;Spese correnti;4;Trasferimenti correnti;2;Trasferimenti correnti a Famiglie;5;Altri trasferimenti a famiglie;999;Altri trasferimenti a famiglie n.a.c.;03/03/2021
281;303,4;303,4;OMESSO NOMINATIVO NEL RISPETTO DELLA NORMATIVA SULLA PROTEZIONE DATI PERSONALI; ;Liquidazione fatt.n.124/A gennaio 2021;03/03/2021;10446;3;69;1;Spese correnti;4;Trasferimenti correnti;2;Trasferimenti correnti a Famiglie;5;Altri trasferimenti a famiglie;999;Altri trasferimenti a famiglie n.a.c.;03/03/2021
282;165;165;OMESSO NOMINATIVO NEL RISPETTO DELLA NORMATIVA SULLA PROTEZIONE DATI PERSONALI; ;Liquidazione fatt.n.125/A gennaio 2021;03/03/2021;10446;3;72;1;Spese correnti;4;Trasferimenti correnti;2;Trasferimenti correnti a Famiglie;5;Altri trasferimenti a famiglie;999;Altri trasferimenti a famiglie n.a.c.;03/03/2021
283;241,61;241,61;OMESSO NOMINATIVO NEL RISPETTO DELLA NORMATIVA SULLA PROTEZIONE DATI PERSONALI; ;Liquidazione fatt.n.126/A gennaio 2021;03/03/2021;10446;3;76;1;Spese correnti;4;Trasferimenti correnti;2;Trasferimenti correnti a Famiglie;5;Altri trasferimenti a famiglie;999;Altri trasferimenti a famiglie n.a.c.;03/03/2021
284;125;125;OMESSO NOMINATIVO NEL RISPETTO DELLA NORMATIVA SULLA PROTEZIONE DATI PERSONALI; ;Liquidazione fatt.n.117/A gennaio 2021;03/03/2021;10446;3;80;1;Spese correnti;4;Trasferimenti correnti;2;Trasferimenti correnti a Famiglie;5;Altri trasferimenti a famiglie;999;Altri trasferimenti a famiglie n.a.c.;03/03/2021
285;384,3;384,3;ELIOS Impianti di Fois Oscar;ZE930BA336;SALDO Fatt.n. 18/2021/IMM  del 26/02/2021;05/03/2021;4311;1;99;1;Spese correnti;3;Acquisto di beni e servizi;2;Acquisto di servizi;9;Manutenzione ordinaria e riparazioni;8;Manutenzione ordinaria e riparazioni di beni immobili;05/03/2021
286;4.090,42;4.090,42;SVILUPPO SERVIZI ITALIA SOC.COOP. ONLUS;852061491A;SALDO Fatt.n. 14FPA  del 28/02/2021;05/03/2021;10418;23;453;1;Spese correnti;3;Acquisto di beni e servizi;2;Acquisto di servizi;99;Altri servizi;999;Altri servizi diversi n.a.c.;05/03/2021
287;129;129;CARTOLIBRERIA ANNY CART  DI SIRIGU ANNIBALE & C. S.AS.;ZCD30C8AE6;SALDO Fatt.n. 5/PA  del 03/03/2021 Contributo Ambientale Conai assolto.;08/03/2021;1206;10;103;1;Spese correnti;3;Acquisto di beni e servizi;1;Acquisto di beni;2;Altri beni di consumo;6;Materiale informatico;08/03/2021
290;6.366,52;6.366,52;COSSEDDU DANIELE GIAMPAOLO;ZD72B0E7F5;SALDO Fatt.n. 1/FE  del 25/01/2021;09/03/2021;28112;13;374;2;Spese in conto capitale;2;Investimenti fissi lordi e acquisto di terreni;1;Beni materiali;9;Beni immobili;12;Infrastrutture stradali;09/03/2021
291;384;384;QUARTANA SRL;Z64309216F;SALDO Fatt.n. 12/001  del 02/03/2021;12/03/2021;1206;3;95;1;Spese correnti;3;Acquisto di beni e servizi;2;Acquisto di servizi;9;Manutenzione ordinaria e riparazioni;6;Manutenzione ordinaria e riparazioni di macchine per ufficio;12/03/2021
292;1.216,95;1.216,95;IMECO s.a.s di SPIGA IGNAZIO;ZEF2F4F38D;SALDO Fatt.n. 26/PA  del 08/03/2021;12/03/2021;8214;2;435;1;Spese correnti;3;Acquisto di beni e servizi;2;Acquisto di servizi;9;Manutenzione ordinaria e riparazioni;8;Manutenzione ordinaria e riparazioni di beni immobili;12/03/2021
293;3.735,97;3.735,97;LAGO E NURAGHE COOPERATIVA SOCIALE;Z712E91860;ACCONTO Fatt.n. 83/PA  del 03/03/2021;12/03/2021;4210;3;392;1;Spese correnti;3;Acquisto di beni e servizi;2;Acquisto di servizi;15;Contratti di servizio pubblico;6;Contratti di servizio per le mense scolastiche;12/03/2021
294;1.294,00;1.294,00;LAGO E NURAGHE COOPERATIVA SOCIALE;Z712E91860;SALDO Fatt.n. 83/PA  del 03/03/2021;12/03/2021;4210;4;393;1;Spese correnti;3;Acquisto di beni e servizi;2;Acquisto di servizi;15;Contratti di servizio pubblico;6;Contratti di servizio per le mense scolastiche;12/03/2021
295;4.507,65;4.507,65;MULTISERVIZI G.A.L.;77846364D9;SALDO Fatt.n. 46/PA  del 26/02/2021;12/03/2021;10216;1;170;1;Spese correnti;3;Acquisto di beni e servizi;2;Acquisto di servizi;15;Contratti di servizio pubblico;999;Altre spese per contratti di servizio pubblico;12/03/2021
296;1.163,06;1.163,06;OMESSO NOMINATIVO NEL RISPETTO DELLA NORMATIVA SULLA PROTEZIONE DATI PERSONALI; ;Progetto Ritornare a casa . Liquidazione buste paga mese di febbraio 2021.;12/03/2021;10418;15;442;1;Spese correnti;3;Acquisto di beni e servizi;2;Acquisto di servizi;99;Altri servizi;999;Altri servizi diversi n.a.c.;12/03/2021
300;367,22;367,22;DOG HOTEL DI IVANO CHINARELLO & C.  S.A.S.;ZD73027FDD;SALDO Fatt.n. 2/1582  del 05/03/2021 Vostro dare per servizio di custodia, mantenimento e cura dei cani randagi presso le nostre strutture.;15/03/2021;3315;1;34;1;Spese correnti;3;Acquisto di beni e servizi;2;Acquisto di servizi;15;Contratti di servizio pubblico;11;Contratti di servizio per la lotta al randagismo;15/03/2021
334;34.417,52;34.417,52;C.MASIA  PREFABBRICATI IN CEMENTO S.N.C.;8430925B65;ACCONTO Fatt.n. 10/P  del 08/03/2021 Fornitura e posa in opera di LOCULI E OSSARI CIMITERIALI PREFABBRICATI;16/03/2021;30518;2;474;2;Spese in conto capitale;2;Investimenti fissi lordi e acquisto di terreni;1;Beni materiali;9;Beni immobili;15;Cimiteri;16/03/2021
335;25.238,01;25.238,01;C.MASIA  PREFABBRICATI IN CEMENTO S.N.C.;8430925B65;SALDO Fatt.n. 10/P  del 08/03/2021 Fornitura e posa in opera di LOCULI E OSSARI CIMITERIALI PREFABBRICATI;16/03/2021;30518;3;475;2;Spese in conto capitale;2;Investimenti fissi lordi e acquisto di terreni;1;Beni materiali;9;Beni immobili;15;Cimiteri;16/03/2021
336;2.287,50;2.287,50;HALLEY SARDEGNA S.R.L.;ZD330EED63;SALDO Fatt.n. 0000211  del 11/03/2021;16/03/2021;1207;5;140;1;Spese correnti;3;Acquisto di beni e servizi;2;Acquisto di servizi;7;Utilizzo di beni di terzi;6;Licenze d'uso per software;16/03/2021
337;1.451,96;1.451,96;Personale Assimilati a Lavoro Dipendente; ;STIPENDI MESE DI: MARZO 21;17/03/2021;1106;1;26;1;Spese correnti;3;Acquisto di beni e servizi;2;Acquisto di servizi;1;Organi e incarichi istituzionali dell'amministrazione;1;Organi istituzionali dell'amministrazione - Indennità;17/03/2021
340;488;488;DASEIN  S.R.L.;Z1D2BD3BF5;SALDO Fatt.n. 260  del 15/03/2021 FATTURA VENDITA SPLIT PAYMENT;17/03/2021;1207;5;110;1;Spese correnti;3;Acquisto di beni e servizi;2;Acquisto di servizi;7;Utilizzo di beni di terzi;6;Licenze d'uso per software;17/03/2021
341;1.134,60;1.134,60;DESSI'  FRANCESCO ISIDORO;Z1E3092132;SALDO Fatt.n. FPA 3/21  del 16/03/2021;17/03/2021;21412;20;96;2;Spese in conto capitale;2;Investimenti fissi lordi e acquisto di terreni;1;Beni materiali;9;Beni immobili;999;Beni immobili n.a.c.;17/03/2021
342;890,6;890,6;DESSI'  FRANCESCO ISIDORO;Z962EAD2BC;SALDO Fatt.n. FPA 2/21  del 16/03/2021;18/03/2021;21412;20;396;2;Spese in conto capitale;2;Investimenti fissi lordi e acquisto di terreni;1;Beni materiali;9;Beni immobili;999;Beni immobili n.a.c.;18/03/2021
343;873,54;873,54;ENEL ENERGIA S.P.A.; ;SALDO Fatt.n. 004118540198  del 09/03/2021;18/03/2021;1206;13;8;1;Spese correnti;3;Acquisto di beni e servizi;2;Acquisto di servizi;5;Utenze e canoni;4;Energia elettrica;18/03/2021
344;1.388,14;1.388,14;ENEL ENERGIA S.P.A.; ;SALDO Fatt.n. 004118540199  del 09/03/2021;18/03/2021;8214;1;13;1;Spese correnti;3;Acquisto di beni e servizi;2;Acquisto di servizi;5;Utenze e canoni;4;Energia elettrica;18/03/2021
345;381,18;381,18;ENEL ENERGIA S.P.A.; ;SALDO Fatt.n. 004114918057  del 06/03/2021;18/03/2021;8214;1;13;1;Spese correnti;3;Acquisto di beni e servizi;2;Acquisto di servizi;5;Utenze e canoni;4;Energia elettrica;18/03/2021
346;500,52;500,52;ENEL ENERGIA S.P.A.; ;SALDO Fatt.n. 004114918056  del 06/03/2021;18/03/2021;4109;9;9;1;Spese correnti;3;Acquisto di beni e servizi;2;Acquisto di servizi;5;Utenze e canoni;4;Energia elettrica;18/03/2021
347;1.115,97;1.115,97;ENEL ENERGIA S.P.A.; ;SALDO Fatt.n. 004120162976  del 11/03/2021;18/03/2021;8214;1;13;1;Spese correnti;3;Acquisto di beni e servizi;2;Acquisto di servizi;5;Utenze e canoni;4;Energia elettrica;18/03/2021
348;310;310;ANUSCA srl; ;QUOTA ASSOCIATIVA ANUSCA ANNO 2021 - COMUNE DI PIMENTEL;18/03/2021;1228;1;115;1;Spese correnti;3;Acquisto di beni e servizi;2;Acquisto di servizi;99;Altri servizi;3;Quote di associazioni;18/03/2021
349;600;600;A.N.U.T.E.L.; ;QUOTA ASSOCIATIVA ANUTEL 2021 -COMUNE DI PIMENTEL;18/03/2021;1228;1;113;1;Spese correnti;3;Acquisto di beni e servizi;2;Acquisto di servizi;99;Altri servizi;3;Quote di associazioni;18/03/2021
350;134,32;134,32;MINISTERO DELL'INTERNO-AFFARI INTERNI E TERRITORIALI; ;CAPO X CAPITOLO 3746  - incassi relativi ai diritti nuove CIE . Corrispettivo per il rilascio di n.8 C.I.E.MESE DI FEBBRAIO 2021;18/03/2021;1229;2;91;1;Spese correnti;4;Trasferimenti correnti;1;Trasferimenti correnti a Amministrazioni Pubbliche;1;Trasferimenti correnti a Amministrazioni Centrali;1;Trasferimenti correnti a Ministeri;18/03/2021
351;313,81;313,81;AGENZIA DELLE ENTRATE RISCOSSIONE; ;QUOTA NAZIONALE  ANCI 2021 - COMUNE DI PIMENTEL AVVISO N. 012830L020000002577;19/03/2021;1228;1;124;1;Spese correnti;3;Acquisto di beni e servizi;2;Acquisto di servizi;99;Altri servizi;3;Quote di associazioni;19/03/2021
352;146,12;146,12;ANCI SARDEGNA; ;ADDIZIONALE REGIONALE QUOTE ASSOCIATIVE ANNO 2021 ANCI SARDEGNA - LIQUIDAZIONE COMPETENZE;19/03/2021;1228;1;125;1;Spese correnti;3;Acquisto di beni e servizi;2;Acquisto di servizi;99;Altri servizi;3;Quote di associazioni;19/03/2021
353;375;375;OMESSO NOMINATIVO NEL RISPETTO DELLA NORMATIVA SULLA PROTEZIONE DATI PERSONALI; ;L.162/98- Liquidazione buste paga mesi di gennaio e febbraio 2021.;19/03/2021;10446;3;39;1;Spese correnti;4;Trasferimenti correnti;2;Trasferimenti correnti a Famiglie;5;Altri trasferimenti a famiglie;999;Altri trasferimenti a famiglie n.a.c.;19/03/2021
354;744,16;744,16;OMESSO NOMINATIVO NEL RISPETTO DELLA NORMATIVA SULLA PROTEZIONE DATI PERSONALI; ;L.162/98- Liquidazione buste paga mesi di gennaio e febbraio 2021.;19/03/2021;10446;3;41;1;Spese correnti;4;Trasferimenti correnti;2;Trasferimenti correnti a Famiglie;5;Altri trasferimenti a famiglie;999;Altri trasferimenti a famiglie n.a.c.;19/03/2021
355;305,8;305,8;OMESSO NOMINATIVO NEL RISPETTO DELLA NORMATIVA SULLA PROTEZIONE DATI PERSONALI; ;L.162/98- Liquidazione buste paga mesi di gennaio e febbraio 2021.;19/03/2021;10446;3;42;1;Spese correnti;4;Trasferimenti correnti;2;Trasferimenti correnti a Famiglie;5;Altri trasferimenti a famiglie;999;Altri trasferimenti a famiglie n.a.c.;19/03/2021
356;610,54;610,54;OMESSO NOMINATIVO NEL RISPETTO DELLA NORMATIVA SULLA PROTEZIONE DATI PERSONALI; ;L.162/98- Liquidazione buste paga mesi di gennaio e febbraio 2021.;19/03/2021;10446;3;43;1;Spese correnti;4;Trasferimenti correnti;2;Trasferimenti correnti a Famiglie;5;Altri trasferimenti a famiglie;999;Altri trasferimenti a famiglie n.a.c.;19/03/2021
357;637,5;637,5;OMESSO NOMINATIVO NEL RISPETTO DELLA NORMATIVA SULLA PROTEZIONE DATI PERSONALI; ;L.162/98- Liquidazione FATTURA N. 1 E 5 ewlativa al servizio di gennaio e febbraio 2021.;19/03/2021;10446;3;44;1;Spese correnti;4;Trasferimenti correnti;2;Trasferimenti correnti a Famiglie;5;Altri trasferimenti a famiglie;999;Altri trasferimenti a famiglie n.a.c.;19/03/2021
358;516,14;516,14;OMESSO NOMINATIVO NEL RISPETTO DELLA NORMATIVA SULLA PROTEZIONE DATI PERSONALI; ;L.162/98- Liquidazione buste paga mesi di gennaio e febbraio 2021.;19/03/2021;10446;3;45;1;Spese correnti;4;Trasferimenti correnti;2;Trasferimenti correnti a Famiglie;5;Altri trasferimenti a famiglie;999;Altri trasferimenti a famiglie n.a.c.;19/03/2021
359;705;705;OMESSO NOMINATIVO NEL RISPETTO DELLA NORMATIVA SULLA PROTEZIONE DATI PERSONALI; ;L.162/98- Liquidazione buste paga mesi di gennaio e febbraio marzo  2021.;19/03/2021;10446;3;46;1;Spese correnti;4;Trasferimenti correnti;2;Trasferimenti correnti a Famiglie;5;Altri trasferimenti a famiglie;999;Altri trasferimenti a famiglie n.a.c.;19/03/2021
360;466,86;466,86;OMESSO NOMINATIVO NEL RISPETTO DELLA NORMATIVA SULLA PROTEZIONE DATI PERSONALI; ;L.162/98- Liquidazione buste paga mesi di gennaio e febbraio 2021.;19/03/2021;10446;3;47;1;Spese correnti;4;Trasferimenti correnti;2;Trasferimenti correnti a Famiglie;5;Altri trasferimenti a famiglie;999;Altri trasferimenti a famiglie n.a.c.;19/03/2021
361;2.103,00;2.103,00;OMESSO NOMINATIVO NEL RISPETTO DELLA NORMATIVA SULLA PROTEZIONE DATI PERSONALI; ;L.162/98- Liquidazione buste paga mesi di gennaio e febbraio 2021.;19/03/2021;10446;3;48;1;Spese correnti;4;Trasferimenti correnti;2;Trasferimenti correnti a Famiglie;5;Altri trasferimenti a famiglie;999;Altri trasferimenti a famiglie n.a.c.;19/03/2021
362;422,81;422,81;OMESSO NOMINATIVO NEL RISPETTO DELLA NORMATIVA SULLA PROTEZIONE DATI PERSONALI; ;L.162/98- Liquidazione buste paga mesi di gennaio e febbraio 2021.;19/03/2021;10446;3;49;1;Spese correnti;4;Trasferimenti correnti;2;Trasferimenti correnti a Famiglie;5;Altri trasferimenti a famiglie;999;Altri trasferimenti a famiglie n.a.c.;19/03/2021
363;787,5;787,5;OMESSO NOMINATIVO NEL RISPETTO DELLA NORMATIVA SULLA PROTEZIONE DATI PERSONALI; ;L.162/98- Liquidazione buste paga mesi di gennaio, febbraio e marzo 2021.;19/03/2021;10446;3;53;1;Spese correnti;4;Trasferimenti correnti;2;Trasferimenti correnti a Famiglie;5;Altri trasferimenti a famiglie;999;Altri trasferimenti a famiglie n.a.c.;19/03/2021
364;315,88;315,88;OMESSO NOMINATIVO NEL RISPETTO DELLA NORMATIVA SULLA PROTEZIONE DATI PERSONALI; ;L.162/98- Liquidazione buste paga mesi di gennaio e febbraio 2021.;19/03/2021;10446;3;55;1;Spese correnti;4;Trasferimenti correnti;2;Trasferimenti correnti a Famiglie;5;Altri trasferimenti a famiglie;999;Altri trasferimenti a famiglie n.a.c.;19/03/2021
365;549,52;549,52;OMESSO NOMINATIVO NEL RISPETTO DELLA NORMATIVA SULLA PROTEZIONE DATI PERSONALI; ;L.162/98- Liquidazione buste paga mesi di gennaio e febbraio 2021.;19/03/2021;10446;3;56;1;Spese correnti;4;Trasferimenti correnti;2;Trasferimenti correnti a Famiglie;5;Altri trasferimenti a famiglie;999;Altri trasferimenti a famiglie n.a.c.;19/03/2021
366;557,79;557,79;OMESSO NOMINATIVO NEL RISPETTO DELLA NORMATIVA SULLA PROTEZIONE DATI PERSONALI; ;L.162/98- Liquidazione buste paga mesi di gennaio e febbraio 2021.;19/03/2021;10446;3;57;1;Spese correnti;4;Trasferimenti correnti;2;Trasferimenti correnti a Famiglie;5;Altri trasferimenti a famiglie;999;Altri trasferimenti a famiglie n.a.c.;19/03/2021
367;297,92;297,92;OMESSO NOMINATIVO NEL RISPETTO DELLA NORMATIVA SULLA PROTEZIONE DATI PERSONALI; ;L.162/98- Liquidazione buste paga mesi di gennaio e febbraio 2021.;19/03/2021;10446;3;59;1;Spese correnti;4;Trasferimenti correnti;2;Trasferimenti correnti a Famiglie;5;Altri trasferimenti a famiglie;999;Altri trasferimenti a famiglie n.a.c.;19/03/2021
368;518,76;518,76;OMESSO NOMINATIVO NEL RISPETTO DELLA NORMATIVA SULLA PROTEZIONE DATI PERSONALI; ;L.162/98- Liquidazione buste paga mesi di gennaio e febbraio 2021.;19/03/2021;10446;3;64;1;Spese correnti;4;Trasferimenti correnti;2;Trasferimenti correnti a Famiglie;5;Altri trasferimenti a famiglie;999;Altri trasferimenti a famiglie n.a.c.;19/03/2021
369;750;750;OMESSO NOMINATIVO NEL RISPETTO DELLA NORMATIVA SULLA PROTEZIONE DATI PERSONALI; ;L.162/98-Liquidazione fatt n 94 gennaio e febbraio 2021;19/03/2021;10446;3;66;1;Spese correnti;4;Trasferimenti correnti;2;Trasferimenti correnti a Famiglie;5;Altri trasferimenti a famiglie;999;Altri trasferimenti a famiglie n.a.c.;19/03/2021
370;656,41;656,41;OMESSO NOMINATIVO NEL RISPETTO DELLA NORMATIVA SULLA PROTEZIONE DATI PERSONALI; ;L.162/98- Liquidazione buste paga mesi di gennaio e febbraio 2021.;19/03/2021;10446;3;67;1;Spese correnti;4;Trasferimenti correnti;2;Trasferimenti correnti a Famiglie;5;Altri trasferimenti a famiglie;999;Altri trasferimenti a famiglie n.a.c.;19/03/2021
371;288,16;288,16;OMESSO NOMINATIVO NEL RISPETTO DELLA NORMATIVA SULLA PROTEZIONE DATI PERSONALI; ;L.162/98- Liquidazione buste paga mesi di gennaio e febbraio 2021.;19/03/2021;10446;3;68;1;Spese correnti;4;Trasferimenti correnti;2;Trasferimenti correnti a Famiglie;5;Altri trasferimenti a famiglie;999;Altri trasferimenti a famiglie n.a.c.;19/03/2021
372;429,32;429,32;OMESSO NOMINATIVO NEL RISPETTO DELLA NORMATIVA SULLA PROTEZIONE DATI PERSONALI; ;L.162/98- Liquidazione buste paga mesi di gennaio e febbraio 2021.;19/03/2021;10446;3;70;1;Spese correnti;4;Trasferimenti correnti;2;Trasferimenti correnti a Famiglie;5;Altri trasferimenti a famiglie;999;Altri trasferimenti a famiglie n.a.c.;19/03/2021
373;248,28;248,28;OMESSO NOMINATIVO NEL RISPETTO DELLA NORMATIVA SULLA PROTEZIONE DATI PERSONALI; ;L.162/98- Liquidazione buste paga mesi di gennaio e febbraio 2021.;19/03/2021;10446;3;73;1;Spese correnti;4;Trasferimenti correnti;2;Trasferimenti correnti a Famiglie;5;Altri trasferimenti a famiglie;999;Altri trasferimenti a famiglie n.a.c.;19/03/2021
374;248,76;248,76;OMESSO NOMINATIVO NEL RISPETTO DELLA NORMATIVA SULLA PROTEZIONE DATI PERSONALI; ;L.162/98- Liquidazione buste paga mesi di gennaio e febbraio 2021.;19/03/2021;10446;3;75;1;Spese correnti;4;Trasferimenti correnti;2;Trasferimenti correnti a Famiglie;5;Altri trasferimenti a famiglie;999;Altri trasferimenti a famiglie n.a.c.;19/03/2021
375;226,2;226,2;OMESSO NOMINATIVO NEL RISPETTO DELLA NORMATIVA SULLA PROTEZIONE DATI PERSONALI; ;L.162/98- Liquidazione buste paga mesi di gennaio e febbraio 2021.;19/03/2021;10446;3;77;1;Spese correnti;4;Trasferimenti correnti;2;Trasferimenti correnti a Famiglie;5;Altri trasferimenti a famiglie;999;Altri trasferimenti a famiglie n.a.c.;19/03/2021
376;303,45;303,45;OMESSO NOMINATIVO NEL RISPETTO DELLA NORMATIVA SULLA PROTEZIONE DATI PERSONALI; ;L.162/98- Liquidazione buste paga mesi di gennaio e febbraio 2021.;19/03/2021;10446;3;78;1;Spese correnti;4;Trasferimenti correnti;2;Trasferimenti correnti a Famiglie;5;Altri trasferimenti a famiglie;999;Altri trasferimenti a famiglie n.a.c.;19/03/2021
377;196,76;196,76;OMESSO NOMINATIVO NEL RISPETTO DELLA NORMATIVA SULLA PROTEZIONE DATI PERSONALI; ;L.162/98- Liquidazione buste paga mesi di gennaio e febbraio 2021.;19/03/2021;10446;3;79;1;Spese correnti;4;Trasferimenti correnti;2;Trasferimenti correnti a Famiglie;5;Altri trasferimenti a famiglie;999;Altri trasferimenti a famiglie n.a.c.;19/03/2021
378;764,08;764,08;OMESSO NOMINATIVO NEL RISPETTO DELLA NORMATIVA SULLA PROTEZIONE DATI PERSONALI; ;L.162/98- Liquidazione fatture 382/Pr e 677/Pr in favore della Soc.Coop. Soc.Lago e Nuraghe per i me;19/03/2021;10446;3;51;1;Spese correnti;4;Trasferimenti correnti;2;Trasferimenti correnti a Famiglie;5;Altri trasferimenti a famiglie;999;Altri trasferimenti a famiglie n.a.c.;19/03/2021
379;1.000,00;1.000,00;OMESSO NOMINATIVO NEL RISPETTO DELLA NORMATIVA SULLA PROTEZIONE DATI PERSONALI; ;L.162/98- Liquidazione buste paga mesi di gennaio e febbraio 2021.;19/03/2021;10446;3;42;1;Spese correnti;4;Trasferimenti correnti;2;Trasferimenti correnti a Famiglie;5;Altri trasferimenti a famiglie;999;Altri trasferimenti a famiglie n.a.c.;19/03/2021
380;209,84;209,84;OMESSO NOMINATIVO NEL RISPETTO DELLA NORMATIVA SULLA PROTEZIONE DATI PERSONALI; ;L.162/98- Liquidazione buste paga mesi di gennaio e febbraio 2021.;19/03/2021;10446;3;183;1;Spese correnti;4;Trasferimenti correnti;2;Trasferimenti correnti a Famiglie;5;Altri trasferimenti a famiglie;999;Altri trasferimenti a famiglie n.a.c.;19/03/2021
381;38.872,88;38.872,88;IMECO s.a.s di SPIGA IGNAZIO;8295108BA9;ACCONTO Fatt.n. 30/PA  del 16/03/2021 videosorvegllianza fase 2.saldo lavori;19/03/2021;29400;0;369;2;Spese in conto capitale;2;Investimenti fissi lordi e acquisto di terreni;1;Beni materiali;4;Impianti e macchinari;2;Impianti;19/03/2021
382;12.312,54;12.312,54;IMECO s.a.s di SPIGA IGNAZIO;8295108BA9;SALDO Fatt.n. 30/PA  del 16/03/2021-videosorveglianza;19/03/2021;29400;1;368;2;Spese in conto capitale;2;Investimenti fissi lordi e acquisto di terreni;1;Beni materiali;4;Impianti e macchinari;2;Impianti;19/03/2021
383;100,04;100,04;VODAFONE OMNITEL  N. V.;Z133027FFB;SALDO Fatt.n. AN04982812  del 20/03/2021 scissione pagamenti;26/03/2021;1207;9;3;1;Spese correnti;3;Acquisto di beni e servizi;2;Acquisto di servizi;5;Utenze e canoni;1;Telefonia fissa;26/03/2021
384;568,76;568,76;VODAFONE OMNITEL  N. V.;Z133027FFB;SALDO Fatt.n. AN04931391  del 20/03/2021 scissione pagamenti;26/03/2021;1207;9;3;1;Spese correnti;3;Acquisto di beni e servizi;2;Acquisto di servizi;5;Utenze e canoni;1;Telefonia fissa;26/03/2021
385;164,46;164,46;VODAFONE OMNITEL  N. V.;Z133027FFB;SALDO Fatt.n. AN04952996  del 20/03/2021 scissione pagamenti;26/03/2021;4311;2;5;1;Spese correnti;3;Acquisto di beni e servizi;2;Acquisto di servizi;5;Utenze e canoni;1;Telefonia fissa;26/03/2021
386;153,23;153,23;VODAFONE OMNITEL  N. V.;Z133027FFB;SALDO Fatt.n. AN04952995  del 20/03/2021 scissione pagamenti;26/03/2021;5110;3;6;1;Spese correnti;3;Acquisto di beni e servizi;2;Acquisto di servizi;5;Utenze e canoni;1;Telefonia fissa;26/03/2021
387;164,46;164,46;VODAFONE OMNITEL  N. V.;Z133027FFB;SALDO Fatt.n. AN04952997  del 20/03/2021 scissione pagamenti;26/03/2021;4109;2;4;1;Spese correnti;3;Acquisto di beni e servizi;2;Acquisto di servizi;5;Utenze e canoni;1;Telefonia fissa;26/03/2021
388;100,04;100,04;VODAFONE OMNITEL  N. V.;Z133027FFB;SALDO Fatt.n. AN01008987  del 21/01/2021 scissione pagamenti;26/03/2021;1207;9;3;1;Spese correnti;3;Acquisto di beni e servizi;2;Acquisto di servizi;5;Utenze e canoni;1;Telefonia fissa;26/03/2021
389;549,88;549,88;VODAFONE OMNITEL  N. V.;Z133027FFB;SALDO Fatt.n. AN00958031  del 21/01/2021 scissione pagamenti;26/03/2021;1207;9;3;1;Spese correnti;3;Acquisto di beni e servizi;2;Acquisto di servizi;5;Utenze e canoni;1;Telefonia fissa;26/03/2021
390;169,34;169,34;VODAFONE OMNITEL  N. V.;Z133027FFB;SALDO Fatt.n. AN00980974  del 21/01/2021 scissione pagamenti;26/03/2021;4311;2;5;1;Spese correnti;3;Acquisto di beni e servizi;2;Acquisto di servizi;5;Utenze e canoni;1;Telefonia fissa;26/03/2021
391;158,11;158,11;VODAFONE OMNITEL  N. V.;Z133027FFB;SALDO Fatt.n. AN00980973  del 21/01/2021 scissione pagamenti;26/03/2021;5110;3;6;1;Spese correnti;3;Acquisto di beni e servizi;2;Acquisto di servizi;5;Utenze e canoni;1;Telefonia fissa;26/03/2021
392;169,34;169,34;VODAFONE OMNITEL  N. V.;Z133027FFB;SALDO Fatt.n. AN00980975  del 21/01/2021 scissione pagamenti;26/03/2021;4109;2;4;1;Spese correnti;3;Acquisto di beni e servizi;2;Acquisto di servizi;5;Utenze e canoni;1;Telefonia fissa;26/03/2021
393;485,56;485,56;AR.DE. ANTINCENDIO S.R.L.;ZC730D66DE;SALDO Fatt.n. 1001051  del 10/03/2021 RESO LAVORAZIONE;26/03/2021;1207;7;117;1;Spese correnti;3;Acquisto di beni e servizi;2;Acquisto di servizi;9;Manutenzione ordinaria e riparazioni;11;Manutenzione ordinaria e riparazioni di altri beni materiali;26/03/2021
394;350;350;OMESSO NOMINATIVO NEL RISPETTO DELLA NORMATIVA SULLA PROTEZIONE DATI PERSONALI; ;REIS 2020. Liquidazione mese di marzo 2021.;29/03/2021;10445;4;466;1;Spese correnti;4;Trasferimenti correnti;2;Trasferimenti correnti a Famiglie;5;Altri trasferimenti a famiglie;999;Altri trasferimenti a famiglie n.a.c.;29/03/2021
395;275;275;OMESSO NOMINATIVO NEL RISPETTO DELLA NORMATIVA SULLA PROTEZIONE DATI PERSONALI; ;REIS 2020. Liquidazione mese di marzo 2021.;29/03/2021;10445;4;466;1;Spese correnti;4;Trasferimenti correnti;2;Trasferimenti correnti a Famiglie;5;Altri trasferimenti a famiglie;999;Altri trasferimenti a famiglie n.a.c.;29/03/2021
396;405;405;OMESSO NOMINATIVO NEL RISPETTO DELLA NORMATIVA SULLA PROTEZIONE DATI PERSONALI; ;REIS 2020. Liquidazione mese di marzo 2021.;29/03/2021;10445;4;466;1;Spese correnti;4;Trasferimenti correnti;2;Trasferimenti correnti a Famiglie;5;Altri trasferimenti a famiglie;999;Altri trasferimenti a famiglie n.a.c.;29/03/2021
397;375;375;OMESSO NOMINATIVO NEL RISPETTO DELLA NORMATIVA SULLA PROTEZIONE DATI PERSONALI; ;REIS 2020. Liquidazione mese di marzo 2021.;29/03/2021;10445;4;466;1;Spese correnti;4;Trasferimenti correnti;2;Trasferimenti correnti a Famiglie;5;Altri trasferimenti a famiglie;999;Altri trasferimenti a famiglie n.a.c.;29/03/2021
398;325;325;OMESSO NOMINATIVO NEL RISPETTO DELLA NORMATIVA SULLA PROTEZIONE DATI PERSONALI; ;REIS 2020. Liquidazione mese di marzo 2021.;29/03/2021;10445;4;466;1;Spese correnti;4;Trasferimenti correnti;2;Trasferimenti correnti a Famiglie;5;Altri trasferimenti a famiglie;999;Altri trasferimenti a famiglie n.a.c.;29/03/2021
399;300;300;OMESSO NOMINATIVO NEL RISPETTO DELLA NORMATIVA SULLA PROTEZIONE DATI PERSONALI; ;REIS 2020. Liquidazione mese di marzo 2021.;29/03/2021;10445;4;466;1;Spese correnti;4;Trasferimenti correnti;2;Trasferimenti correnti a Famiglie;5;Altri trasferimenti a famiglie;999;Altri trasferimenti a famiglie n.a.c.;29/03/2021
400;300;300;OMESSO NOMINATIVO NEL RISPETTO DELLA NORMATIVA SULLA PROTEZIONE DATI PERSONALI; ;REIS 2020. Liquidazione mese di marzo 2021.;29/03/2021;10445;4;466;1;Spese correnti;4;Trasferimenti correnti;2;Trasferimenti correnti a Famiglie;5;Altri trasferimenti a famiglie;999;Altri trasferimenti a famiglie n.a.c.;29/03/2021
401;300;300;OMESSO NOMINATIVO NEL RISPETTO DELLA NORMATIVA SULLA PROTEZIONE DATI PERSONALI; ;REIS 2020. Liquidazione mese di marzo 2021.;29/03/2021;10445;4;466;1;Spese correnti;4;Trasferimenti correnti;2;Trasferimenti correnti a Famiglie;5;Altri trasferimenti a famiglie;999;Altri trasferimenti a famiglie n.a.c.;29/03/2021
402;225;225;OMESSO NOMINATIVO NEL RISPETTO DELLA NORMATIVA SULLA PROTEZIONE DATI PERSONALI; ;REIS 2020. Liquidazione mese di marzo 2021.;29/03/2021;10445;4;466;1;Spese correnti;4;Trasferimenti correnti;2;Trasferimenti correnti a Famiglie;5;Altri trasferimenti a famiglie;999;Altri trasferimenti a famiglie n.a.c.;29/03/2021
403;300;300;OMESSO NOMINATIVO NEL RISPETTO DELLA NORMATIVA SULLA PROTEZIONE DATI PERSONALI; ;L.R.23/2005. LIQUIDAZIONE CONTRIBUTO ECONOMICO IN FAVORE DI UN NUCLEO FAMILIARE;29/03/2021;10445;1;102;1;Spese correnti;4;Trasferimenti correnti;2;Trasferimenti correnti a Famiglie;5;Altri trasferimenti a famiglie;999;Altri trasferimenti a famiglie n.a.c.;29/03/2021
404;1.370,25;1.370,25;LAGO E NURAGHE COOPERATIVA SOCIALE;Z322C1FE75;SALDO Fatt.n. 89/PA  del 12/03/2021;29/03/2021;10216;10;149;1;Spese correnti;3;Acquisto di beni e servizi;2;Acquisto di servizi;15;Contratti di servizio pubblico;999;Altre spese per contratti di servizio pubblico;29/03/2021
405;723;723;CORONGIU ALESSANDRA; ;LIQUIDAZIONE QUOTA SINDACO - RIMBORSO FORFETTARIO - MARZO 2021 - Regolamento di attuazione dell'art.73 della L.R. n.2/2016 ( Riordino del sistema delle autonomie locali della Sardegna) in materia di oneri connessi all'esercizio delle funzioni elettiv;29/03/2021;1106;14;146;1;Spese correnti;3;Acquisto di beni e servizi;2;Acquisto di servizi;1;Organi e incarichi istituzionali dell'amministrazione;1;Organi istituzionali dell'amministrazione - Indennità;29/03/2021
406;250;250;PILLOSU GIANLUCA; ;LIQUIDAZIONE QUOTA VICE-SINDACO - RIMBORSO FORFETTARIO - MARZO 2021;29/03/2021;1106;14;147;1;Spese correnti;3;Acquisto di beni e servizi;2;Acquisto di servizi;1;Organi e incarichi istituzionali dell'amministrazione;1;Organi istituzionali dell'amministrazione - Indennità;29/03/2021
407;100;100;MARRAS WALTER; ;LIQUIDAZIONE QUOTA ASSESSORE M.W. - RIMBORSO FORFETTARIO - MARZO 2021 Regolamento di attuazione dell'art.73 della L.R. n.2/2016 ( Riordino del sistema delle autonomie locali della Sardegna) in materia di oneri connessi all'esercizio delle funzioni el;29/03/2021;1106;14;148;1;Spese correnti;3;Acquisto di beni e servizi;2;Acquisto di servizi;1;Organi e incarichi istituzionali dell'amministrazione;1;Organi istituzionali dell'amministrazione - Indennità;29/03/2021
408;100;100;SCANO ROBERTINO; ;LIQUIDAZIONE QUOTA ASSESSORE S.R. - RIMBORSO FORFETTARIO - MARZO 2021  Regolamento di attuazione dell'art.73 della L.R. n.2/2016 ( Riordino del sistema delle autonomie locali della Sardegna) in materia di oneri connessi all'esercizio delle funzioni e;29/03/2021;1106;14;149;1;Spese correnti;3;Acquisto di beni e servizi;2;Acquisto di servizi;1;Organi e incarichi istituzionali dell'amministrazione;1;Organi istituzionali dell'amministrazione - Indennità;29/03/2021
409;100;100;PIAS LORENZO; ;LIQUIDAZIONE QUOTA ASSESSORE P.L. - RIMBORSO FORFETTARIO - MARZO 2021  - Regolamento di attuazione dell'art.73 della L.R. n.2/2016 ( Riordino del sistema delle autonomie locali della Sardegna) in materia di oneri connessi all'esercizio delle funzioni;29/03/2021;1106;14;150;1;Spese correnti;3;Acquisto di beni e servizi;2;Acquisto di servizi;1;Organi e incarichi istituzionali dell'amministrazione;1;Organi istituzionali dell'amministrazione - Indennità;29/03/2021
410;561,35;561,35;OMESSO NOMINATIVO NEL RISPETTO DELLA NORMATIVA SULLA PROTEZIONE DATI PERSONALI; ;L.431/1998., ART.11. Contributi per il sostegno alla locazione. Annualità 2020-mensilità maggio-dice;30/03/2021;10447;1;502;1;Spese correnti;4;Trasferimenti correnti;2;Trasferimenti correnti a Famiglie;5;Altri trasferimenti a famiglie;999;Altri trasferimenti a famiglie n.a.c.;30/03/2021
411;561,35;561,35;OMESSO NOMINATIVO NEL RISPETTO DELLA NORMATIVA SULLA PROTEZIONE DATI PERSONALI; ;L.431/1998., ART.11. Contributi per il sostegno alla locazione. Annualità 2020-mensilità maggio-dice;30/03/2021;10447;1;502;1;Spese correnti;4;Trasferimenti correnti;2;Trasferimenti correnti a Famiglie;5;Altri trasferimenti a famiglie;999;Altri trasferimenti a famiglie n.a.c.;30/03/2021
412;561,35;561,35;OMESSO NOMINATIVO NEL RISPETTO DELLA NORMATIVA SULLA PROTEZIONE DATI PERSONALI; ;L.431/1998., ART.11. Contributi per il sostegno alla locazione. Annualità 2020-mensilità maggio-dice;30/03/2021;10447;1;502;1;Spese correnti;4;Trasferimenti correnti;2;Trasferimenti correnti a Famiglie;5;Altri trasferimenti a famiglie;999;Altri trasferimenti a famiglie n.a.c.;30/03/2021
413;550,6;550,6;OMESSO NOMINATIVO NEL RISPETTO DELLA NORMATIVA SULLA PROTEZIONE DATI PERSONALI; ;L.431/1998., ART.11. Contributi per il sostegno alla locazione. Annualità 2020-mensilità maggio-dice;30/03/2021;10447;1;502;1;Spese correnti;4;Trasferimenti correnti;2;Trasferimenti correnti a Famiglie;5;Altri trasferimenti a famiglie;999;Altri trasferimenti a famiglie n.a.c.;30/03/2021
414;427,19;427,19;OMESSO NOMINATIVO NEL RISPETTO DELLA NORMATIVA SULLA PROTEZIONE DATI PERSONALI; ;L.431/1998., ART.11. Contributi per il sostegno alla locazione. Annualità 2020-mensilità maggio-dice;30/03/2021;10447;1;502;1;Spese correnti;4;Trasferimenti correnti;2;Trasferimenti correnti a Famiglie;5;Altri trasferimenti a famiglie;999;Altri trasferimenti a famiglie n.a.c.;30/03/2021
415;291,92;291,92;OMESSO NOMINATIVO NEL RISPETTO DELLA NORMATIVA SULLA PROTEZIONE DATI PERSONALI; ;L.431/1998., ART.11. Contributi per il sostegno alla locazione. Annualità 2020-mensilità maggio-dice;30/03/2021;10447;1;502;1;Spese correnti;4;Trasferimenti correnti;2;Trasferimenti correnti a Famiglie;5;Altri trasferimenti a famiglie;999;Altri trasferimenti a famiglie n.a.c.;30/03/2021
416;3.172,00;3.172,00;NICOLA ZUDDAS  S.R.L.;Z4C3085ACB;SALDO Fatt.n. 2021   270/E  del 17/03/2021.Amministratore di sistema 2021;30/03/2021;1207;22;93;1;Spese correnti;3;Acquisto di beni e servizi;2;Acquisto di servizi;19;Servizi informatici e di telecomunicazioni;5;Servizi per i sistemi e relativa manutenzione;30/03/2021
417;640,5;640,5;NICOLA ZUDDAS  S.R.L.;ZB42D3412C;SALDO Fatt.n. 2021   353/E  del 23/03/2021;30/03/2021;1207;19;251;1;Spese correnti;3;Acquisto di beni e servizi;2;Acquisto di servizi;16;Servizi amministrativi;999;Altre spese per servizi amministrativi;30/03/2021
